Cogmind - Beta 15 @@@ ROGUE MODE // 2025.05.18 @ 18:35:07 Player: szymekc Result: Heading to fleet! Performance ------------- Evolutions (9) 4500 Regions Visited (27) 5400 Robots Destroyed (534) 2670 Value Destroyed (27744) 27744 Prototype IDs (109) 2180 Alien Tech Used (9) 1800 Bonus (26044) 26044 TOTAL SCORE: 70338 Bonus ------- Triggered High Security 1000 High Alert Combat Kills 9678 Follower Combat Kills 2942 Network Hubs Disabled 600 Registered with UFD 300 Met Optimus in HQ 500 Met Zhirov 300 Met Warlord at Base 500 MAIN.C Attacked Warlord 500 Warlord Defense Kills 2500 Built Enhanced Grunts 300 Met R17 at Cetus 500 Found Hidden Lab 3000 Used Core Reset Matrix 3000 Met R17 at Research 2000 Win 3000 Friendly Fire -4576 Cogmind --------- Core Integrity 1231/1600 Matter 276/300 Energy 152/170 System Corruption 0% +Membrane Temperature Cool (24) Movement Hovering (56) Location To Fleet Rendezvous Parts ------- > --- POWER (3) -------- Light Antimatter Reactor > --- PROPULSION (8) --- Combat Antigrav System Combat Antigrav System Combat Antigrav System Combat Antigrav System Antigrav Array Experimental Gyrokinetic Inverter > --- UTILITY (12) ----- Advanced Coolant Injector Large Storage Unit Experimental Optical Array Advanced Signal Interpreter Experimental Core Analyzer Advanced ECM Suite Graphene Brace Improved System Shield > --- WEAPON (2) ------- Potential Cannon > --- INVENTORY (15) --- Improved Antigrav System Core Analyzer Energy Filter Improved Force Field Transdimensional Reconstructor Terrabomb HERF Cannon Enhanced Nova Cannon Enhanced Nova Cannon Compact Mass Driver Compact Mass Driver Advanced Remote Datajack Enhanced Force Lance Peak State ------------ > --- POWER ------------ Backup Power VII Quantum Reactor > --- PROPULSION ------- Advanced Myomer Leg Enhanced Biometal Leg Enhanced Biometal Leg Enhanced Biometal Leg Centrium Leg Centrium Leg > --- UTILITY ---------- Huge Storage Unit Experimental Optical Array Advanced Sensor Array Experimental Signal Interpreter Improved Transmission Jammer Experimental Cloaking Device Centrium Light Armor Plating Centrium Light Armor Plating Graphene Brace > --- WEAPON ----------- BFG-9k Vortex Edition > --- INVENTORY -------- Advanced Energy Well Experimental Matter Compressor Advanced Cloaking Device Phase Armor Experimental EM Shield Dimensional Node Initializer Transdimensional Reconstructor High-powered Transdimensional Reconstructor Terrabomb Quantum Rifle EMDS Nova Cannon Enhanced Nova Cannon Enhanced Nova Cannon Potential Cannon KE Penetrator Enhanced Coil Gun Advanced KE Penetrator Hellfire Missile Launcher Hellfire Missile Launcher Advanced Remote Datajack [Rating: 234] Favorites ----------- Power Quantum Reactor Engine Ion Engine Power Core Light Nuclear Core Reactor Quantum Reactor Propulsion Enhanced Biometal Leg Treads Light Treads Leg Enhanced Biometal Leg Wheel Armored Wheel Hover Unit Combat Antigrav System Flight Unit Electron Diverter Utility Huge Storage Unit Device Transmission Jammer Storage Huge Storage Unit Processor Enhanced Optical Array Hackware Improved Hacking Suite Protection Medium Regenerative Plating Artifact Microwarp Drive Weapon Advanced KE Penetrator Energy Gun Subdweller Laser Energy Cannon Enhanced Nova Cannon Ballistic Gun Advanced KE Penetrator Ballistic Cannon Battle Cannon Launcher Rocket Launcher Special Weapon Mining Laser Impact Weapon Power Maul Slashing Weapon Centrium Greatsword Piercing Weapon Enhanced Force Lance Special Melee Weapon Improved Datajack Build | -11 -10 -10 -10 -9 -9 -6 -6 -6 -6 -6 -5 -5 -5 -5 -4 -4 -4 -4 -4 -3 -3 -3 -3 -2 -2 -2 -1 ------- Run | Yrd Mat Min Sub Rec Scr Fac Ext Cet Arc Hub Fac Upp Upp War Pro Fac Upp Upp Zhi Pro Res Arm Lab Res Qua Sec Acc Slots Evolved 18 | . . . . . . 8 . . . . 2 . . . . 2 . . . . 2 . . 2 . . 2 Power 2 | . . . . . . 1 . . . . . . . . . . . . . . . . . . . . 1 Propulsion 6 | . . . . . . 1 . . . . 2 . . . . 1 . . . . . . . . . . 2 Utility 10 | . . . . . . 5 . . . . . . . . . . . . . . 2 . . . . . 3 Weapon . | . . . . . . 1 . . . . . . . . . 1 . . . . . . . 2 . . -4 Parts Attached 401 | 8 9 6 13 2 9 30 11 17 5 15 15 2 2 14 1 18 6 1 4 . 8 48 4 40 20 20 73 Power 62 | 1 1 2 1 . 1 4 1 3 . 2 1 . 1 1 . 4 1 . 1 . 1 6 . 8 3 4 15 Engine 7 | 1 1 1 . . . 2 1 . . . . . . . . 1 . . . . . . . . . . . Core 7 | . . 1 1 . 1 1 . . . . . . 1 . . 1 1 . . . . . . . . . . Reactor 48 | . . . . . . 1 . 3 . 2 1 . . 1 . 2 . . 1 . 1 6 . 8 3 4 15 Propulsion 85 | 2 . 2 6 1 3 6 . . . 4 2 . . 2 . 4 2 . 2 . . 12 . 10 2 4 21 Treads 15 | 2 . 2 1 . 2 1 . . . 1 . . . . . . . . . . . 3 . . . 3 . Leg 39 | . . . . . . 4 . . . 3 2 . . 2 . 4 2 . 1 . . 9 . 10 2 . . Wheel 7 | . . . 5 1 1 . . . . . . . . . . . . . . . . . . . . . . Hover 23 | . . . . . . 1 . . . . . . . . . . . . 1 . . . . . . . 21 Flight 1 | . . . . . . . . . . . . . . . . . . . . . . . . . . 1 . Utility 140 | 2 2 1 1 1 3 11 7 9 3 6 9 2 . 7 1 4 2 1 1 . 2 19 1 8 5 8 24 Device 76 | 2 . 1 . . . 4 4 6 3 5 4 1 . 5 . 4 1 1 . . . 12 . 2 3 4 14 Storage 10 | . 1 . . . 1 1 . 1 . . 2 . . . . . . . . . . 1 . . . . 3 Processor 18 | . . . . . . 3 2 . . 1 1 . . 1 . . 1 . . . . 2 . 1 2 1 3 Hackware 12 | . . . . . . 2 . . . . 2 . . . . . . . . . 1 4 . 1 . . 2 Protection 21 | . 1 . 1 1 2 1 1 2 . . . 1 . 1 1 . . . 1 . 1 . 1 4 . . 2 Artifact 3 | . . . . . . . . . . . . . . . . . . . . . . . . . . 3 . Weapon 114 | 3 6 1 5 . 2 9 3 5 2 3 3 . 1 4 . 6 1 . . . 5 11 3 14 10 4 13 Energy Gun 12 | 2 . . 1 . . 1 . . . . . . . 1 . 2 . . . . . 1 . 2 1 1 . Energy Cannon 34 | . . . 1 . 1 3 . 2 . 2 2 . . . . . . . . . 4 3 2 2 5 1 6 Ballistic Gun 36 | 1 3 1 1 . . . . 3 2 . . . . 1 . 3 1 . . . 1 4 1 7 3 2 2 Ballistic Cannon 10 | . . . 2 . . 2 1 . . . . . 1 . . . . . . . . 1 . . . . 3 Launcher 11 | . 2 . . . . 2 . . . . 1 . . 1 . . . . . . . 2 . 3 . . . Special Weapon 6 | . 1 . . . . . 2 . . 1 . . . . . 1 . . . . . . . . 1 . . Impact Weapon 2 | . . . . . 1 . . . . . . . . 1 . . . . . . . . . . . . . Slashing Weapon 1 | . . . . . . . . . . . . . . . . . . . . . . . . . . . 1 Piercing Weapon 1 | . . . . . . . . . . . . . . . . . . . . . . . . . . . 1 Special Melee Weapon 1 | . . . . . . 1 . . . . . . . . . . . . . . . . . . . . . Unidentified Prototypes 55 | . . . . . . 5 . 6 . 8 2 1 . 9 . 1 . . 4 . 1 8 2 1 . 3 4 Corrupted Parts 4 | . . . . . . . . 2 2 . . . . . . . . . . . . . . . . . . System Corruption 19 | . . . . . . . . 11 8 . . . . . . . . . . . . . . . . . . Parts Lost 111 | . 1 3 6 . . . . 2 . 3 . . . . 2 13 5 . . . 1 19 . 13 10 17 16 Power 18 | . 1 . 1 . . . . 1 . . . . . . . 1 2 . . . . 3 . 1 3 1 4 Propulsion 25 | . . 2 4 . . . . . . 2 . . . . . 4 1 . . . . 6 . . 1 . 5 Utility 32 | . . 1 . . . . . . . 1 . . . . 2 3 1 . . . . 5 . 5 3 6 5 Weapon 36 | . . . 1 . . . . 1 . . . . . . . 5 1 . . . 1 5 . 7 3 10 2 Highest Loss Streak 15 | . 1 1 4 . . . . 1 . 3 . . . . 2 9 3 . . . 1 15 . 3 3 4 5 To Critical Strikes 2 | . . . 1 . . . . . . . . . . . . . 1 . . . . . . . . . . Average Backups 15 | 1 13 14 12 4 15 15 15 14 15 16 20 22 23 20 16 17 18 19 18 19 18 17 17 17 17 17 10 Power . | . 1 1 . . . . . . 1 1 1 1 . . . . . . . . . . . . . . . Propulsion 1 | . 1 1 1 1 2 2 1 3 2 2 1 3 2 1 2 1 1 1 1 3 3 2 . . 1 1 . Utility 6 | . 4 5 4 . 6 6 8 5 6 7 11 13 13 12 7 8 10 11 9 8 7 7 5 5 5 4 1 Weapon 5 | . 7 7 5 1 3 3 3 3 4 3 5 4 5 5 5 5 4 5 5 5 5 5 9 7 6 6 5 Tool/Special . | . . . . . . . . . . . . . . . . . . . . . . . . . . . . Unused Backups 72 | . 1 1 6 2 5 4 . 8 . 3 7 1 1 6 . 1 2 . 2 . 3 5 2 1 1 5 5 Power 3 | . 1 1 . . 1 . . . . . . . . . . . . . . . . . . . . . . Propulsion 17 | . . . 1 . 1 . . 3 . 1 2 . 1 2 . . . . . . . 3 . . . 2 1 Utility 28 | . . . 3 . 2 2 . 4 . 2 2 1 . 4 . . 2 . 2 . 1 . . . . 2 1 Weapon 19 | . . . 2 2 1 1 . 1 . . 3 . . . . 1 . . . . 2 2 2 1 1 . . Tool/Special 5 | . . . . . . 1 . . . . . . . . . . . . . . . . . . . 1 3 Average Slot Usage (%) 91 | . 100 98 99 87 91 94 88 84 87 87 99 94 94 94 93 93 97 100 80 100 99 73 98 93 96 68 74 Engine 1 | . 14 10 . . . 1 . 1 . . . . . . . . . . . . . . . . . . . Core 3 | . . 3 13 14 13 4 5 . . . . . 3 3 . . 2 5 5 5 . . . . . 1 . Reactor 5 | . . . . . . 3 5 9 11 11 11 11 6 5 5 4 5 5 5 5 8 8 9 7 7 5 9 Treads 6 | . 28 27 15 . 2 4 . . . 1 . . . . . . . . . . . 7 . . . 10 . Leg 13 | . . . . . . 3 22 22 22 14 28 29 29 28 29 30 30 31 31 31 28 9 28 26 25 2 . Wheel 4 | . . . 12 28 25 10 . . . . . . . . . . . . . . . . . . . . . Hover 1 | . . . . . . . . . . . . . . . . . . . . . . . . . . . 23 Device 12 | . 12 11 13 2 . 12 13 15 15 16 10 9 11 8 9 10 13 10 10 10 14 20 24 17 16 13 15 Storage 7 | . 13 14 14 2 13 5 5 5 5 5 5 5 5 5 5 5 5 5 5 5 4 4 4 4 4 3 3 Processor 7 | . . . . . . 8 7 11 11 12 11 11 11 13 17 15 16 21 21 21 19 5 4 7 11 7 10 Hackware 1 | . . . . . . 9 6 . . . 5 1 . . . . . . . . 3 . . . . . 2 Protection 3 | . 2 1 . 10 8 6 5 2 5 5 5 5 5 8 5 3 . . . . . 1 6 6 5 2 1 Energy Gun 2 | . 1 . . 14 10 . . . . . . . . . . 2 5 5 . 5 2 . . . 4 2 . Energy Cannon 3 | . . . 10 . 3 4 5 5 . . 2 4 6 . . . . . . . 6 7 5 3 5 4 2 Ballistic Gun 10 | . 25 17 6 . . . . 10 15 17 14 11 9 15 16 17 14 15 1 15 8 3 12 16 12 7 1 Ballistic Cannon 2 | . . . 8 14 10 8 10 . . . . . . . . . . . . . . 2 . . . . . Peak Build Rating 234 | 9 11 13 19 16 23 98 96 120 119 123 141 137 135 151 153 170 145 142 142 142 160 179 184 216 234 196 215 Average Rating 102 | 5 10 11 15 14 18 67 93 107 118 115 135 134 133 140 151 158 140 141 117 142 154 144 178 195 207 168 167 On Entrance 107 | . 9 10 13 16 16 23 96 96 117 118 122 137 132 135 148 153 140 142 142 142 142 158 177 184 215 120 94 Naked Turns . | . . . . . . . . . . . . . . . . . . . . . . . . . . . . Heaviest Build 210 | 11 34 36 40 33 61 101 115 120 107 109 149 152 160 147 144 156 128 122 128 128 152 182 160 182 182 210 111 Greatest Support 210 | 40 40 40 40 12 24 110 110 110 110 110 150 150 150 150 150 175 160 155 155 150 150 210 163 180 180 180 120 Greatest Overweight (x) 36 | . . 1 13 3 5 4 1 1 . 1 . 1 1 . . 1 . . . . 1 36 . 1 1 2 5 Average Overweight (x) . | . . . . 2 2 2 . . . . . . . . . . . . . . . . . . . . . Largest Inventory Capacity 25 | 5 15 15 15 15 20 20 20 20 20 20 25 25 25 25 25 25 25 25 25 25 25 25 25 25 25 25 15 Average Capacity 20 | 5 14 15 15 7 18 20 20 20 20 20 24 25 25 25 25 25 25 25 25 25 25 25 25 25 25 24 13 Most Carried 25 | 3 15 15 15 15 20 20 20 20 20 20 25 25 25 25 25 25 25 25 25 25 25 25 25 25 25 25 15 Average Carried 19 | 1 13 14 14 5 18 18 17 19 19 19 22 24 24 24 22 23 24 25 24 25 24 24 23 24 24 20 12 Final Capacity 25 | 5 15 15 15 15 20 20 20 20 20 20 25 25 25 25 25 25 25 25 25 25 25 25 25 25 25 5 15 Final Carried 25 | 3 15 15 15 15 20 16 20 20 20 18 25 25 25 25 22 25 25 25 25 25 25 25 25 25 24 4 13 Class Distribution -------------------- 28% | Mutant 23% | Scavenger-Gunner 6% | Infiltrator-Executioner 5% | Scavenger-Tank 4% | Scavenger-Skirmisher 4% | Scavenger-Mutant Dominant Class ---------------- Mutant | -10/Materials Mutant | -10/Mines Mutant | -10/Subcaves Subdweller-Mutant | -9/Recycling Mutant | -9/Scraptown Hacker-Skirmisher | -6/Factory Hacker-Tank | -6/Extension Scavenger-Gunner | -6/Cetus Scavenger-Skirmisher | -6/Archives Scavenger-Skirmisher | -6/Hub_04(d) Scavenger-Gunner | -5/Factory Scavenger-Gunner | -5/Upper Caves Scavenger-Gunner | -5/Upper Caves Scavenger-Gunner | -5/Warlord Scavenger-Gunner | -4/Proximity Caves Scavenger-Gunner | -4/Factory Scavenger-Gunner | -4/Upper Caves Scavenger-Gunner | -4/Upper Caves Scavenger-Mutant | -4/Zhirov Scavenger-Gunner | -3/Proximity Caves Scavenger-Gunner | -3/Research Machinist-Tank | -3/Armory Scavenger-Tank | -3/Lab Executioner | -2/Research Infiltrator-Executioner | -2/Quarantine Alien-Tank | -2/Section 7 Scavenger-Scout | -1/Access Resources | -11 -10 -10 -10 -9 -9 -6 -6 -6 -6 -6 -5 -5 -5 -5 -4 -4 -4 -4 -4 -3 -3 -3 -3 -2 -2 -2 -1 ----------- Run | Yrd Mat Min Sub Rec Scr Fac Ext Cet Arc Hub Fac Upp Upp War Pro Fac Upp Upp Zhi Pro Res Arm Lab Res Qua Sec Acc Matter Collected 19653 | 300 374 832 322 148 142 1032 611 386 445 1216 1061 232 84 696 37 1621 366 120 . 158 205 1346 . 2595 2035 1505 1784 Remotely 32 | . . . . . . . . . . . . . . . . . . 32 . . . . . . . . . Salvage Created 27456 | 126 610 447 410 143 . 1176 458 491 320 1367 1767 67 74 572 96 3780 765 . . 159 141 1984 . 5000 2265 2427 2811 Parts 1262 | 9 39 23 20 8 . 40 17 35 16 91 73 4 2 10 4 187 27 . . 1 4 100 . 236 68 70 178 Haulers Intercepted 13 | . 2 . . . . 2 . . . 2 2 . . . . . . . . . . . . 2 . 1 2 Recyclers Shooed 16 | 1 . 1 . . . 1 . . . . 1 . . . . 5 . . . . . . . 4 2 . 1 Parts Field Recycled . | . . . . . . . . . . . . . . . . . . . . . . . . . . . . Retrieved Matter . | . . . . . . . . . . . . . . . . . . . . . . . . . . . . Parts Self-Destructed 23 | . . . 2 . . . . . . . . 1 . . . . 19 . . 1 . . . . . . . Prevented 2 | . . . . . . . . . . . . . . . . . 2 . . . . . . . . . . Kills | -11 -10 -10 -10 -9 -9 -6 -6 -6 -6 -6 -5 -5 -5 -5 -4 -4 -4 -4 -4 -3 -3 -3 -3 -2 -2 -2 -1 ------- Run | Yrd Mat Min Sub Rec Scr Fac Ext Cet Arc Hub Fac Upp Upp War Pro Fac Upp Upp Zhi Pro Res Arm Lab Res Qua Sec Acc Combat Hostiles Destroyed 395 | . 12 20 8 1 . 20 7 4 1 13 28 1 . 17 3 43 8 . . . 2 34 . 58 32 48 35 Melee 5 | . . . . . . . . . . . . . . . . . . . . . . . . . . 1 4 Guns 208 | . 8 7 2 . . . . . 1 13 20 1 . 5 1 41 8 . . . 1 7 . 38 16 12 27 Cannons 61 | . . . 5 1 . 10 6 1 . . 2 . . . . . . . . . 1 19 . 4 2 6 4 AOE 98 | . 4 13 . . . 7 . . . . 3 . . 12 2 2 . . . . . 5 . 14 8 28 . Classes Destroyed 27 | 2 4 2 2 2 . 3 2 . 1 . 2 . . 3 . 2 1 . . . . 1 . . . . . Worker 37 | . . 3 . . . 4 . . . 8 2 . . . . 12 . . . . . . . 3 . . 5 Builder 45 | . . . . 2 . 1 1 . . 3 4 . . . . 22 . . . . . . . 9 . . 3 Tunneler 4 | 2 . . . . . . . . . . 1 . . . . . . . . . . . . . . . 1 Hauler 13 | . 2 . . . . 2 . . . 2 2 . . . . . . . . . . . . 2 . 1 2 Recycler 26 | 1 1 1 . 1 . 3 1 . . 1 . . . . . 6 . . . . . . . 3 2 3 3 Mechanic 3 | . . . . . . . . . . . 1 . . . . . . . . . . . . . . 2 . Operator 11 | . . . . . . . . . 7 1 1 . . . . . . . . . . . . . . 1 1 Watcher 11 | . 1 . . . . . 1 . . . . . . . . 2 . . . . . . . 4 1 . 2 Swarmer 53 | . 3 . . . . 3 . . . 2 6 . . . . . 5 . . . . 5 . 5 . 9 15 Saboteur 5 | . . . . . . . . . . . . . . . . 2 . . . . . . . . . 3 . Grunt 125 | . 9 6 . . . 11 3 . . 2 12 . . 8 . 14 . . . . 2 9 . 17 13 18 1 Brawler 10 | . . . . . . . 1 . . . 1 . . 1 . 1 . . . . . . . . 2 4 . Duelist 10 | . . . . . . 1 . . . . . . . . . . . . . . . 3 . 1 2 2 1 Protector 4 | . . . . . . . . . . . 1 . . 1 . . . . . . . . . 1 1 . . Sentry 26 | . . . . 1 . 1 2 . 1 2 2 . . . . 3 . . . . . . . 5 1 6 2 Demolisher 1 | . . . . . . . . . . . . . . . . . . . . . . 1 . . . . . Specialist 7 | . . . . . . . . . . . . . . 1 . 2 . . . . . 3 . 1 . . . Hunter 39 | . . . . . . 2 . . . . 2 1 . . 2 10 3 . . . . 2 . 10 3 4 . Programmer 72 | . . . . . . 2 . . . 1 4 . . . 1 10 . . . . . 11 . 17 10 . 16 Heavy 1 | . . . . . . . . . . . . . . . . 1 . . . . . . . . . . . Behemoth 3 | . . . . . . . 1 . . . . . . 2 . . . . . . . . . . . . . Cetus Guard 4 | . . . . . . . . 4 . . . . . . . . . . . . . . . . . . . Lightning 6 | . . . . . . . . . . 6 . . . . . . . . . . . . . . . . . Striker 4 | . . . . . . . . . . . . . . 2 . . . . . . . . . 1 . 1 . Executioner 3 | . . . . . . . . . . . . . . 2 . . . . . . . . . . . 1 . Artisan 1 | . . . 1 . . . . . . . . . . . . . . . . . . . . . . . . Subdweller 8 | . . . 8 . . . . . . . . . . . . . . . . . . . . . . . . Decomposer 1 | . . . . . . . . . . . . . . . . . 1 . . . . . . . . . . Samaritan 2 | . . . . . . . . . . . . . . . . . 2 . . . . . . . . . . Assembled 14 | . . 14 . . . . . . . . . . . . . . . . . . . . . . . . . Thug 3 | . . . . . . . . 2 . . . . . 1 . . . . . . . . . . . . . Savage 1 | . . . . . . . . . . . . . 1 . . . . . . . . . . . . . . Best Kill Streak 19 | 3 5 8 3 1 . 9 3 2 4 6 14 1 . 13 3 13 5 . . . 1 5 . 17 9 19 13 Combat Bots Only 17 | . 4 7 3 1 . 6 2 2 1 3 5 1 . 13 3 7 5 . . . 1 5 . 14 9 17 10 Max Kills in Single Turn 10 | 1 2 2 1 1 . 3 2 1 1 2 5 1 1 10 1 9 3 . . . 1 5 . 5 3 5 2 Gunslinging 1 | . . . . . . . . . . . 1 . . . . 1 1 . . . . . . 1 . . 1 Exploded 10 | . 2 2 . . . 2 . . . . 2 . . 10 1 2 . . . . . 5 . 5 3 4 . Melee 1 | . . . . . . . . . . . . . . . . . . . . . . . . . . 1 1 Uniques/NPCs Destroyed 1 | . . . . . . . . 1 . . . . . . . . . . . . . . . . . . . A7 (-6/Cetus) Combat | -11 -10 -10 -10 -9 -9 -6 -6 -6 -6 -6 -5 -5 -5 -5 -4 -4 -4 -4 -4 -3 -3 -3 -3 -2 -2 -2 -1 -------- Run | Yrd Mat Min Sub Rec Scr Fac Ext Cet Arc Hub Fac Upp Upp War Pro Fac Upp Upp Zhi Pro Res Arm Lab Res Qua Sec Acc Hostile Shots Fired 3050 | . 64 33 51 4 . 80 113 35 3 120 162 12 . 36 54 366 54 . . . 28 385 . 503 342 342 263 Missed 1077 | . 17 12 13 1 . 23 46 8 1 37 64 5 . 15 18 167 18 . . . 6 129 . 170 127 115 85 Hits 1973 | . 47 21 38 3 . 57 67 27 2 83 98 7 . 21 36 199 36 . . . 22 256 . 333 215 227 178 Melee 56 | . . 2 . . . . . . . . 1 . . 1 . . . . . . . 32 . 5 6 4 5 Projectile 1917 | . 47 19 38 3 . 57 67 27 2 83 97 7 . 20 36 199 36 . . . 22 224 . 328 209 223 173 AOE 3 | . . . . . . . . . . . . . . . . . . . . . . 3 . . . . . Critical Strikes 124 | . 1 . 1 . . 3 . 7 . 7 3 . . 1 1 9 3 . . . . 22 . 26 13 7 20 Actively Blocked 64 | . . . . . . . . . . . . . . . 1 . . . . . . 1 . 22 13 7 20 Part Disruptions 13 | . . . . . . . . . . 3 . . . . . . . . . . . . . 3 . . 7 Damage Taken 38721 | . 526 410 809 43 . 1076 785 602 50 1519 1701 139 . 512 671 3564 625 . . . 425 3936 . 6005 4569 6447 4307 Core 3459 | . 24 . 165 14 . 78 96 74 . 197 213 22 . 25 65 223 77 . . . 10 471 . 371 236 729 369 Absorbed by Shields 518 | . . . . . . 57 183 116 . . . . . . . . . . . . . 56 . . 106 . . Reduced by Siege Mode 30 | . . . . . . . . . . 15 . . . . . . . . . . . 8 . . . 7 . Redirected to Core 51 | . . . . . . . . . . . . . . . . . . . . . . . . . . 51 . Redirected to Shielding 393 | . . . . . . . . . . . . . . 116 154 . . . . . . 123 . . . . . Ignored by Resistances 5743 | . . . . . . . 24 93 . 917 190 . . . . 248 . . . . . 1717 . 1879 546 . 129 Regen/Repaired (Parts) 3361 | . . . . . . 153 . 34 174 395 318 3 . 381 165 660 . . . . 125 . . 114 839 . . Core Remaining (%) 58 | 100 . . . . 18 . . . . 47 . . . . 67 . . . . 73 . . 84 . . 1 76 Volleys Fired 1319 | 12 63 51 91 32 . 41 42 51 34 87 86 13 4 25 7 96 22 8 . 8 4 93 20 138 102 87 102 Largest 6 | 2 2 2 2 2 . 3 3 3 3 3 3 3 1 3 3 4 4 4 . 4 4 4 1 6 6 6 2 Hottest 484 | 70 100 100 100 93 . 177 181 228 105 105 162 105 81 260 105 198 198 198 . 198 374 360 40 322 484 437 240 Shots Fired 3129 | 24 110 89 101 36 . 89 120 84 91 243 214 21 4 67 17 303 72 13 . 14 15 237 20 496 282 227 140 Gun 2147 | 24 94 54 18 4 . . . 25 85 241 161 18 . 63 15 301 72 13 . 14 12 70 2 438 193 143 87 Cannon 831 | . . . 47 32 . 79 118 58 6 . 51 3 4 . . . . . . . 3 166 18 48 78 67 53 Launcher 90 | . 4 29 . . . 10 . . . . 2 . . 4 2 1 . . . . . 1 . 10 10 17 . Special 61 | . 12 6 36 . . . 2 1 . 2 . . . . . 1 . . . . . . . . 1 . . Kinetic 2141 | 12 83 54 24 32 . 58 78 25 85 241 161 18 . 63 15 243 61 12 . 12 10 99 2 410 139 112 92 Thermal 744 | 12 12 6 77 4 . 28 40 37 6 . 27 3 . 1 . 13 11 1 . 2 5 135 18 61 104 93 48 Explosive 75 | . 4 29 . . . . . . . . 2 . . 3 2 1 . . . . . 1 . 6 10 17 . Electromagnetic 103 | . 11 . . . . 3 . 21 . . 24 . 4 . . . . . . . . 2 . 19 14 5 . Entropic 59 | . . . . . . . . . . . . . . . . 45 . . . . . . . . 14 . . Robot Hit Streak 40 | 6 6 10 35 9 . 9 5 40 18 12 13 4 . 17 3 13 14 . . 8 10 21 . 14 24 12 12 Robot Miss Streak 11 | 2 3 7 1 1 . 3 11 4 5 4 7 1 . 3 4 6 3 . . 1 2 6 . 7 4 8 7 Penetration Max 2 | . . . . . . 1 1 1 1 1 1 . . 1 . 1 1 . . . . 1 . 2 1 1 2 Secondary Targets 44 | . 1 . . . . . . . . 3 3 . . 1 . 16 2 . . . . 3 . 6 4 1 4 Max Gunslinging Chain 2 | . 1 . . . . . . . . 1 1 . . 1 . 2 1 . . . . 1 . 2 1 1 1 Shots Hit Robots 1773 | 14 61 40 50 9 . 59 61 67 45 140 119 9 . 50 5 191 45 . . 6 13 133 . 280 155 114 107 Core Hits 1248 | 4 25 37 10 4 . 51 23 27 21 58 82 3 1 112 12 170 28 . . 3 5 69 . 193 72 131 107 Critical Kills 96 | . . . 1 . . 3 1 . 2 9 10 . . 1 1 15 2 . . . . 8 . 34 3 2 4 Critical Parts Destroyed 154 | . . . 1 . . . . 2 7 18 13 . . 5 . 22 1 . . . 1 14 . 53 9 6 2 Critical Strikes 289 | . . . 2 . . 7 13 3 10 27 25 . . 8 1 37 3 . . . 1 24 . 90 19 10 9 Burn 2 | . . . . . . . . . . . . . . . . . . . . . . . . 1 1 . . Meltdown 7 | . . . 1 . . 2 1 . . . . . . . . . . . . . . 3 . . . . . Destroy 247 | . . . 1 . . . . 3 10 27 25 . . 8 1 32 3 . . . 1 19 . 89 12 9 7 Blast 18 | . . . . . . 4 12 . . . . . . . . . . . . . . 2 . . . . . Corrupt 5 | . . . . . . . . . . . . . . . . . . . . . . . . . 4 1 . Smash 1 | . . . . . . 1 . . . . . . . . . . . . . . . . . . . . . Sever 2 | . . . . . . . . . . . . . . . . . . . . . . . . . . . 2 Detonate 5 | . . . . . . . . . . . . . . . . 5 . . . . . . . . . . . Sunder 2 | . . . . . . . . . . . . . . . . . . . . . . . . . 2 . . Melee Attacks 51 | . . . . . . 18 . . . . . . . 1 . . . . . . . . . . . . 32 Impact 18 | . . . . . . 17 . . . . . . . 1 . . . . . . . . . . . . . Slashing 28 | . . . . . . . . . . . . . . . . . . . . . . . . . . . 28 Piercing 4 | . . . . . . . . . . . . . . . . . . . . . . . . . . . 4 Sneak Attacks 10 | . . . . . . 6 . . . . . . . . . . . . . . . . . . . . 4 Combat Hostiles 1 | . . . . . . . . . . . . . . . . . . . . . . . . . . . 1 Follow-up Attacks . | . . . . . . . . . . . . . . . . . . . . . . . . . . . . Damage Inflicted 87306 | 176 1055 1418 1207 191 . 3854 2379 2105 1488 4300 4566 199 119 4935 459 9856 1097 . . 162 374 5564 . 9834 13638 12647 5683 Guns 34294 | 176 854 557 263 45 . . . 661 1488 3964 2663 179 . 1542 109 7076 1088 . . 162 244 423 . 4331 3258 2030 3181 Cannons 22831 | . . . 944 146 . 1563 2353 1444 . . 904 . 119 . . . . . . . 116 4468 . 1016 7604 1268 886 Explosions 27210 | . 161 801 . . . 1647 . . . 325 963 . . 3393 350 2454 . . . . . 547 . 4459 2677 9309 124 Melee 2098 | . . . . . . 644 . . . . . . . . . . . . . . . . . . . . 1454 Ramming 849 | . 16 60 . . . . 26 . . 11 36 20 . . . 326 9 . . . 14 126 . 28 99 40 38 Kinetic 34320 | 89 775 557 251 146 . 2416 1533 661 1488 3964 2663 179 . 1542 109 4814 817 . . 116 185 1507 . 3639 2108 1545 3216 Thermal 15378 | 87 46 . 956 45 . 794 820 934 . 36 614 . . . . 1756 271 . . 46 175 3351 . 1282 1712 1478 975 Explosive 22783 | . 139 801 . . . . . . . . 640 . . 3393 350 1088 . . . . . 547 . 3839 2677 9309 . Electromagnetic 3700 | . 79 . . . . . . 510 . 289 613 . 119 . . . . . . . . 33 . 1046 736 275 . Impact 644 | . . . . . . 644 . . . . . . . . . . . . . . . . . . . . . Slashing 1334 | . . . . . . . . . . . . . . . . . . . . . . . . . . . 1334 Piercing 120 | . . . . . . . . . . . . . . . . . . . . . . . . . . . 120 Entropic 8178 | . . . . . . . . . . . . . . . . 1872 . . . . . . . . 6306 . . Highest Corruption 24 | . . . . . . . . 12 7 16 1 1 . . 2 7 7 7 7 7 . 8 8 10 24 24 . Average Corruption 6 | . . . . . . . . 4 2 14 1 1 . . 1 4 7 7 7 7 . 3 8 5 13 6 . Corruption Purged 21 | . . . . . . . . 9 11 . . 1 . . . . . . . . . . . . . . . Corruption Blocked . | . . . . . . . . . . . . . . . . . . . . . . . . . . . . Effects 293 | . . . . . . . . 14 5 27 7 5 . . 2 24 21 12 2 6 . 24 13 39 80 12 . Message Errors 68 | . . . . . . . . 4 . 4 4 . . . 1 5 6 2 . . . 5 4 6 24 3 . Matter Fused 59 | . . . . . . . . 2 1 6 1 1 . . 1 2 5 5 . 3 . 3 3 10 14 2 . Heat Flow Errors 26 | . . . . . . . . . 1 3 . 1 . . . 1 1 1 1 1 . 5 1 6 4 . . Energy Discharges 32 | . . . . . . . . 3 1 1 1 . . . . 3 3 2 . 2 . 4 . 2 9 1 . Parts Rejected 2 | . . . . . . . . . . . 1 . . . . . . . . . . . . 1 . . . Parts Fused 3 | . . . . . . . . 1 . 1 . . . . . . 1 . . . . . . . . . . Data Loss (minor) 37 | . . . . . . . . 2 1 2 . 2 . . . 5 1 1 . . . 2 . 7 9 5 . Data Loss (major) 8 | . . . . . . . . . . . . 1 . . . 1 1 1 1 . . 1 . 1 1 . . Misfires 13 | . . . . . . . . . 1 . . . . . . 1 1 . . . . 1 2 2 5 . . Alerts 8 | . . . . . . . . . . 3 . . . . . 2 . . . . . . 1 1 1 . . Misdirections 8 | . . . . . . . . . . . . . . . . . . . . . . . . . 8 . . Weapon Failures 29 | . . . . . . . . 2 . 7 . . . . . 4 2 . . . . 3 2 3 5 1 . Overload Shots . | . . . . . . . . . . . . . . . . . . . . . . . . . . . . Overflow Damage 2191 | . . 5 5 . . 360 19 . . 18 7 . . 1 . 255 . . . . . 287 . 93 295 281 565 Projectiles 698 | . . . 5 . . 20 19 . . . 7 . . . . . . . . . . 269 . 38 177 15 148 Explosions 827 | . . 5 . . . 102 . . . 18 . . . 1 . 202 . . . . . 18 . 55 113 266 47 Melee 666 | . . . . . . 238 . . . . . . . . . 53 . . . . . . . . 5 . 370 Knockbacks 36 | . . . 1 1 . 9 12 . . 1 . . . . . 2 . . . . . 9 . . 1 . . Impact 7 | . . . . . . 2 . . . 1 . . . . . 2 . . . . . 1 . . 1 . . Kinetic 28 | . . . 1 1 . 6 12 . . . . . . . . . . . . . . 8 . . . . . Secondary 1 | . . . . . . 1 . . . . . . . . . . . . . . . . . . . . . Self-Inflicted Damage 1266 | . . 65 . . . 79 . . . 52 105 . . 25 39 235 . . . . . . . 143 . 458 65 Shots 32 | . . 3 . . . 2 . . . 3 5 . . 1 2 4 . . . . . . . 6 . 5 1 Rammed 21 | . 3 8 . . . . . . . . . . . . . . . . . . . . . . . 6 4 Targets Rammed 58 | . 3 9 . . . . 3 . . 2 2 1 . . . 12 1 . . . 2 4 . 3 6 6 4 Kicked 36 | . . . . . . . 3 . . 2 2 1 . . . 12 1 . . . 2 4 . 3 6 . . Crushed 1 | . . 1 . . . . . . . . . . . . . . . . . . . . . . . . . Highest Temperature 443 | 99 192 168 214 126 . 199 244 120 98 244 315 96 . 174 72 307 230 204 115 166 228 298 83 180 443 299 41 Average Temperature 79 | 47 47 39 70 55 . 102 100 23 14 120 81 54 . 70 34 104 62 85 59 56 89 79 54 50 124 105 12 Received Heat Transfer 3955 | . 282 120 216 9 . 303 264 62 9 84 387 . . 126 . 390 9 . . . 42 185 . 522 342 477 126 Effects 8 | . . . . . . . . . . . 2 . . . . . . . . . . . . . 5 1 . Shutdowns 1 | . . . . . . . . . . . . . . . . . . . . . . . . . 1 . . Energy Bleed 3 | . . . . . . . . . . . 2 . . . . . . . . . . . . . 1 . . Interference 1 | . . . . . . . . . . . . . . . . . . . . . . . . . . 1 . Damage (major) 3 | . . . . . . . . . . . . . . . . . . . . . . . . . 3 . . Siege Activations 3 | . . . . . . . . . . 1 . . . . . . . . . . . 1 . . . 1 . Total Turns 60 | . . . . . . . . . . 49 . . . . . . . . . . . 6 . . . 5 . Longest Duration 49 | . . . . . . . . . . 49 . . . . . . . . . . . 6 . . . 5 . Martial Activations . | . . . . . . . . . . . . . . . . . . . . . . . . . . . . Shielding Activations . | . . . . . . . . . . . . . . . . . . . . . . . . . . . . Robots Disrupted . | . . . . . . . . . . . . . . . . . . . . . . . . . . . . Combat Hostiles . | . . . . . . . . . . . . . . . . . . . . . . . . . . . . Robots Corrupted 23 | . . . . . . 3 . 3 . . 3 . 1 . . 4 . . . . . . . 2 7 . . Combat Hostiles 15 | . . . . . . 1 . 3 . . 3 . . . . . . . . . . . . 2 6 . . Parts Fried 31 | . . . . . . 4 . 2 . . 4 . 1 . . 7 . . . . . . . 6 7 . . Impact Corruptions 12 | . . . . . . 7 . . . . . . . . . 4 . . . . . . . . 1 . . Robots Melted 8 | . . . 1 . . 2 1 . . . . . . . . . . . . . . 3 . . . 1 . Combat Hostiles 8 | . . . 1 . . 2 1 . . . . . . . . . . . . . . 3 . . . 1 . Parts Melted 32 | . . . 4 . . 3 . . . . 1 . . 3 . 2 1 . . . 1 11 . 3 1 2 . Heat Transferred 16396 | 259 50 . 1284 50 . 1050 1250 875 . 50 626 . . . . 1750 450 . . 75 211 2884 . 1406 1924 1517 685 Parts Sabotaged 7 | . . . . . . . . . . . . . . . . . . . . . . . . . 3 1 3 Parts Stolen . | . . . . . . . . . . . . . . . . . . . . . . . . . . . . Parts Stripped . | . . . . . . . . . . . . . . . . . . . . . . . . . . . . Power Chain Reactions 5 | . 1 . . . . . . . . 2 2 . . . . . . . . . . . . . . . . Alert | -11 -10 -10 -10 -9 -9 -6 -6 -6 -6 -6 -5 -5 -5 -5 -4 -4 -4 -4 -4 -3 -3 -3 -3 -2 -2 -2 -1 ------- Run | Yrd Mat Min Sub Rec Scr Fac Ext Cet Arc Hub Fac Upp Upp War Pro Fac Upp Upp Zhi Pro Res Arm Lab Res Qua Sec Acc Maximum Alert Level 5 | . . . . . . 2 2 1 1 5 4 . . . . 4 . . . . . 2 . 4 3 5 5 Low Security (%) 49 | 100 100 100 . 100 . 67 12 6 95 30 . . . . . 58 . . . . 100 55 . 40 . . . Level 1 11 | . . . . . . 32 58 93 4 5 . . . . . 9 . . . . . 5 . 16 . . . Level 2 9 | . . . . . . . 28 . . 9 . . . . . 7 . . . . . 39 . 6 28 16 . Level 3 14 | . . . . . . . . . . 21 75 . . . . 21 . . . . . . . 15 71 10 . Level 4 9 | . . . . . . . . . . 29 24 . . . . 3 . . . . . . . 20 . 11 51 Level 5 3 | . . . . . . . . . . 4 . . . . . . . . . . . . . . . 5 35 High Security 3 | . . . . . . . . . . . . . . . . . . . . . . . . . . 55 13 Max Security . | . . . . . . . . . . . . . . . . . . . . . . . . . . . . Peak Influence 2766 | 5 127 80 . 100 . 399 472 378 206 1729 1475 . . . . 1169 . . . . 32 696 . 1460 1042 2312 2766 Initial 1387 | . . 19 . . . . 191 220 71 32 842 . . . . . . . . . . . . . 819 532 1387 Average 490 | 1 37 14 . 40 . 142 329 277 150 746 1024 . . . . 338 . . . . 4 286 . 521 780 1559 1702 Influence Increases 18437 | 15 490 314 . 312 . 834 649 329 320 2419 1067 105 . 340 60 1769 220 . . 5 112 1480 . 1980 1268 2130 2219 Destroy 0b10 Robot/C 8620 | . 240 120 . 20 . 400 340 160 80 660 540 20 . 320 60 860 160 . . . 40 880 . 1140 620 960 1000 Destroy 0b10 Robot/NC 875 | 15 20 25 . 15 . 50 35 10 35 110 60 . . 5 . 210 15 . . 5 . 10 . 110 20 35 90 Destroy Leader 1530 | . 76 30 . . . 84 36 . . 178 84 10 . . . 174 30 . . . 10 144 . 212 102 172 188 Allied During Kill 1283 | . . . . . . . 149 148 110 659 . . . . . . . . . . . 47 . . . . 170 Successful Hack 475 | . 25 . . 31 . 20 34 . . 28 46 . . . . 42 . . . . 32 70 . 14 28 . 105 Select Force Hacks 300 | . 60 . . 240 . . . . . . . . . . . . . . . . . . . . . . . Disable Machine 1470 | . 30 . . . . 150 15 . 75 450 90 . . . . 75 . . . . . 120 . 75 150 150 90 Anti-Garrison Action 300 | . . . . . . . . . . . . . . . . . . . . . . . . . . 150 150 Destroy Structure 2654 | . 39 139 . 6 . 85 40 11 20 319 232 . . . . 378 . . . . . 134 . 249 303 423 276 Partial Spotted 45 | . . . . . . . . . . . . . . . . . . . . . 15 . . 15 . . 15 Lose Combat Pursuer 885 | . . . . . . 45 . . . 15 15 75 . 15 . 30 15 . . . 15 75 . 165 45 240 135 Influence Decreases 15681 | 15 439 362 3 277 35 444 645 544 406 791 1337 832 289 529 306 606 837 319 227 5 112 811 669 524 1777 765 1775 Entered New Map 6258 | . . 32 3 . 35 . 199 174 108 61 879 538 139 435 246 . 431 105 227 . . . 669 . 637 415 925 Time Decay 7331 | 15 434 310 . 277 . 434 446 310 238 510 458 294 150 94 50 379 356 214 . 5 102 591 . 394 580 180 510 Lost Part 1010 | . . 20 . . . . . 20 . 30 . . . . 10 130 50 . . . 10 180 . 130 100 170 160 Lost Ally 390 | . . . . . . 10 . 40 60 40 . . . . . 10 . . . . . 40 . . 10 . 180 Purge Threat 692 | . 5 . . . . . . . . 150 . . . . . 87 . . . . . . . . 450 . . Squads Dispatched 127 | . 5 . . . . 7 2 . . 8 7 . . . . 8 . . . . 8 8 . 15 11 20 28 Investigation 17 | . 4 . . . . 1 1 . . . 1 . . . . 2 . . . . 3 . . 3 . . 2 Extermination 31 | . . . . . . 3 . . . 4 2 . . . . 3 . . . . . 5 . 4 5 . 5 Reinforcement 34 | . 1 . . . . 3 1 . . 3 3 . . . . 2 . . . . 5 3 . 7 1 2 3 Assault 37 | . . . . . . . . . . . 1 . . . . 1 . . . . . . . . 4 16 15 Garrison 8 | . . . . . . . . . . 1 . . . . . . . . . . . . . 1 1 2 3 Intercept . | . . . . . . . . . . . . . . . . . . . . . . . . . . . . Searches Triggered . | . . . . . . . . . . . . . . . . . . . . . . . . . . . . Construction Impeded 8 | . . . . . . 1 1 . . . . . . . . 2 . . . . . . . 3 . 1 . Haulers Reinforced 7 | . . . . . . 1 . . . 1 1 . . . . . . . . . 2 . . 1 . 1 . Active Scanning Responses . | . . . . . . . . . . . . . . . . . . . . . . . . . . . . Cargo Convoy Interrupts 2 | . . . . . . . . . . . . . . . . 1 . . . . . . . 1 . . . Stealth | -11 -10 -10 -10 -9 -9 -6 -6 -6 -6 -6 -5 -5 -5 -5 -4 -4 -4 -4 -4 -3 -3 -3 -3 -2 -2 -2 -1 --------- Run | Yrd Mat Min Sub Rec Scr Fac Ext Cet Arc Hub Fac Upp Upp War Pro Fac Upp Upp Zhi Pro Res Arm Lab Res Qua Sec Acc Distress Signals 34 | . 2 . . . . 1 . 2 . 3 . . . . . 3 . . . . 8 4 . 2 2 2 5 Communications Jammed 376 | . . . . . . . 2 . . 94 17 . . . . 64 . . . . 4 51 . 20 112 12 . Distress Signals 357 | . . . . . . . 2 . . 86 17 . . . . 60 . . . . 4 51 . 13 112 12 . Times Spotted 765 | . 23 18 8 1 . 27 19 11 15 39 38 6 . 55 3 65 8 . . . 16 69 . 86 48 101 109 Peak Tracking Total 14 | . 4 3 2 1 . 4 4 5 1 5 6 5 . 14 3 12 3 . . . 5 8 . 14 9 12 14 Tactical Retreats 47 | . . . . . . 2 . . . 1 1 3 . 1 . 2 1 . . . 1 3 . 7 3 10 12 Traps | -11 -10 -10 -10 -9 -9 -6 -6 -6 -6 -6 -5 -5 -5 -5 -4 -4 -4 -4 -4 -3 -3 -3 -3 -2 -2 -2 -1 ------- Run | Yrd Mat Min Sub Rec Scr Fac Ext Cet Arc Hub Fac Upp Upp War Pro Fac Upp Upp Zhi Pro Res Arm Lab Res Qua Sec Acc Traps Triggered 15 | . 2 . 1 . . 2 2 . . . . . . . . . . . . . . 1 . 1 2 1 3 Indirectly . | . . . . . . . . . . . . . . . . . . . . . . . . . . . . Trap Hack Attempts . | . . . . . . . . . . . . . . . . . . . . . . . . . . . . Triggered . | . . . . . . . . . . . . . . . . . . . . . . . . . . . . Disarmed . | . . . . . . . . . . . . . . . . . . . . . . . . . . . . Reprogrammed . | . . . . . . . . . . . . . . . . . . . . . . . . . . . . Reused . | . . . . . . . . . . . . . . . . . . . . . . . . . . . . Traps Extracted . | . . . . . . . . . . . . . . . . . . . . . . . . . . . . Installed . | . . . . . . . . . . . . . . . . . . . . . . . . . . . . Triggered . | . . . . . . . . . . . . . . . . . . . . . . . . . . . . Most Traps Carried 1 | . . . . . 1 1 1 1 1 1 . . . . . . . . . . . . . . . . . Machines | -11 -10 -10 -10 -9 -9 -6 -6 -6 -6 -6 -5 -5 -5 -5 -4 -4 -4 -4 -4 -3 -3 -3 -3 -2 -2 -2 -1 ---------- Run | Yrd Mat Min Sub Rec Scr Fac Ext Cet Arc Hub Fac Upp Upp War Pro Fac Upp Upp Zhi Pro Res Arm Lab Res Qua Sec Acc Machines Disabled 109 | . 2 . 1 . . 10 3 . 5 30 6 1 . 1 . 5 . . . . . 8 3 5 11 11 7 Max in Single Turn 15 | . 1 . 1 . . 2 1 . 1 15 1 1 . 1 . 2 . . . . . 2 1 1 2 2 1 Garrison Access 3 | . . . . . . . . . . . 1 . . . . . . . . . . . . . . 1 1 Network Hub 3 | . . . . . . . . . . 3 . . . . . . . . . . . . . . . . . Machines Repaired . | . . . . . . . . . . . . . . . . . . . . . . . . . . . . Machines Dismantled . | . . . . . . . . . . . . . . . . . . . . . . . . . . . . Machines Sabotaged . | . . . . . . . . . . . . . . . . . . . . . . . . . . . . Overloaded Fab Kills . | . . . . . . . . . . . . . . . . . . . . . . . . . . . . Hacking | -11 -10 -10 -10 -9 -9 -6 -6 -6 -6 -6 -5 -5 -5 -5 -4 -4 -4 -4 -4 -3 -3 -3 -3 -2 -2 -2 -1 --------- Run | Yrd Mat Min Sub Rec Scr Fac Ext Cet Arc Hub Fac Upp Upp War Pro Fac Upp Upp Zhi Pro Res Arm Lab Res Qua Sec Acc Machines Accessed 109 | . 9 . 2 14 3 11 9 1 . 6 8 1 1 5 . 7 . . 4 . 3 5 . 9 5 . 6 Terminals 56 | . 7 . . 6 . 5 8 1 . 6 3 . . . . 5 . . . . 1 2 . 5 4 . 3 Fabricators 8 | . . . . . . 1 . . . . 2 . . . . . . . . . . 3 . 2 . . . Repair Stations 5 | . . . . . . 1 . . . . . . . . . 1 . . . . 1 . . 1 1 . . Recycling Units 18 | . 2 . . 8 . 3 1 . . . 1 . . . . 1 . . . . . . . . . . 2 Scanalyzers 2 | . . . . . . . . . . . 1 . . . . . . . . . 1 . . . . . . Garrison Access 4 | . . . . . . 1 . . . . 1 . . . . . . . . . . . . 1 . . 1 Total Hacks 365 | . 30 . 13 40 21 37 24 2 . 8 35 6 1 9 . 32 . . 16 . 16 16 . 18 21 . 20 Successful 204 | . 18 . 13 23 21 19 9 . . 3 18 6 1 9 . 9 . . 16 . 11 11 . 3 5 . 9 Failed 161 | . 12 . . 17 . 18 15 2 . 5 17 . . . . 23 . . . . 5 5 . 15 16 . 11 Catastrophic 43 | . . . . 2 . 3 1 . . 5 2 . . . . 8 . . . . 1 2 . 8 5 . 6 Database Lockouts . | . . . . . . . . . . . . . . . . . . . . . . . . . . . . Manual 120 | . 19 . . 25 . 16 7 1 . 2 7 . . . . 10 . . . . 9 1 . 6 6 . 11 Terminals 187 | . 25 . . 17 . 19 21 2 . 8 10 . . . . 29 . . . . 12 4 . 10 17 . 13 Fabricators 22 | . . . . . . 2 . . . . 4 . . . . . . . . . . 12 . 4 . . . Repair Stations 11 | . . . . . . 3 . . . . . . . . . 2 . . . . 1 . . 1 4 . . Recycling Units 51 | . 5 . . 23 . 10 3 . . . 4 . . . . 1 . . . . . . . . . . 5 Scanalyzers 17 | . . . . . . . . . . . 14 . . . . . . . . . 3 . . . . . . Garrison Access 11 | . . . . . . 3 . . . . 3 . . . . . . . . . . . . 3 . . 2 Terminal Hacks 113 | . 6 . 13 3 21 7 6 . . 3 1 6 1 9 . 4 . . 16 . 6 . . 1 5 . 5 Record 51 | . . . 12 . 20 . . . . . . 6 . 8 . . . . 5 . . . . . . . . Part Schematic 3 | . . . . . . . . . . . . . . . . . . . 3 . . . . . . . . Robot Analysis 4 | . . . . . . . . . . . . . . . . . . . 4 . . . . . . . . Prototype ID Bank 8 | . 2 . . . . 1 . . . . . . . . . . . . 4 . . . . . 1 . . Open Door 7 | . . . . . . . 5 . . . . . 1 1 . . . . . . . . . . . . . Level Access Points 1 | . . . . . . . . . . . . . . . . 1 . . . . . . . . . . . Branch Access Points 2 | . . . . . . . . . . . . . . . . 1 . . . . 1 . . . . . . Emergency Access Points 1 | . . . . . . . . . . . . . . . . . . . . . . . . . . . 1 Terminal Index 6 | . . . . 1 . 1 . . . 1 1 . . . . . . . . . 1 . . . 1 . . Repair Station Index 1 | . . . . . . . . . . . . . . . . . . . . . 1 . . . . . . Garrison Index 1 | . . . . . . . . . . . . . . . . . . . . . 1 . . . . . . Alert Level 2 | . . . . . . . . . . . . . . . . . . . . . . . . . . . 2 Unreport Threat 8 | . 1 . . . . 1 . . . 1 . . . . . 1 . . . . . . . . 3 . 1 Locate Traps 6 | . 2 . . . . . 1 . . 1 . . . . . . . . . . 1 . . . . . 1 Recall Extermination 1 | . . . . . . 1 . . . . . . . . . . . . . . . . . . . . . Hauler Manifests 2 | . . . . . . 1 . . . . . . . . . . . . . . 1 . . . . . . Registered Components 3 | . 1 . . 1 . 1 . . . . . . . . . . . . . . . . . . . . . Registered Prototypes 1 | . . . . . . 1 . . . . . . . . . . . . . . . . . . . . . Zone Layout 3 | . . . . 1 . . . . . . . . . . . 1 . . . . . . . 1 . . . Proto ID Catalog 2 | . . . 1 . 1 . . . . . . . . . . . . . . . . . . . . . . Fabricator Hacks 14 | . . . . . . 1 . . . . 2 . . . . . . . . . . 10 . 1 . . . Network Status 3 | . . . . . . 1 . . . . 1 . . . . . . . . . . . . 1 . . . Load Schematic 5 | . . . . . . . . . . . 1 . . . . . . . . . . 4 . . . . . Build 6 | . . . . . . . . . . . . . . . . . . . . . . 6 . . . . . Repair Station Hacks 2 | . . . . . . 2 . . . . . . . . . . . . . . . . . . . . . Scan Component 1 | . . . . . . 1 . . . . . . . . . . . . . . . . . . . . . Repair 1 | . . . . . . 1 . . . . . . . . . . . . . . . . . . . . . Recycling Unit Hacks 11 | . 1 . . 5 . 3 1 . . . 1 . . . . . . . . . . . . . . . . Retrieve Components 11 | . 1 . . 5 . 3 1 . . . 1 . . . . . . . . . . . . . . . . Scanalyzer 12 | . . . . . . . . . . . 9 . . . . . . . . . 3 . . . . . . Insert Component 7 | . . . . . . . . . . . 4 . . . . . . . . . 3 . . . . . . Analyze 5 | . . . . . . . . . . . 5 . . . . . . . . . . . . . . . . Garrison Access Hacks 1 | . . . . . . . . . . . 1 . . . . . . . . . . . . . . . . Seal Access 1 | . . . . . . . . . . . 1 . . . . . . . . . . . . . . . . Unauthorized Hacks 50 | . 11 . . 15 . 6 2 . . . 4 . . . . 5 . . . . 2 1 . 1 . . 3 Terminals 27 | . 9 . . 7 . 4 1 . . . 1 . . . . 3 . . . . 1 . . . . . 1 Track 1 | . . . . . . . . . . . . . . . . 1 . . . . . . . . . . . Assimilate 1 | . . . . . . . . . . . 1 . . . . . . . . . . . . . . . . Botnet 12 | . 3 . . 2 . 2 1 . . . . . . . . 2 . . . . 1 . . . . . 1 Skim 13 | . 6 . . 5 . 2 . . . . . . . . . . . . . . . . . . . . . Fabricators 2 | . . . . . . . . . . . 1 . . . . . . . . . . 1 . . . . . Prioritize 1 | . . . . . . . . . . . . . . . . . . . . . . 1 . . . . . Recompile 1 | . . . . . . . . . . . 1 . . . . . . . . . . . . . . . . Repair Stations 3 | . . . . . . . . . . . . . . . . 1 . . . . 1 . . 1 . . . Patch 3 | . . . . . . . . . . . . . . . . 1 . . . . 1 . . 1 . . . Recycling Units 18 | . 2 . . 8 . 2 1 . . . 2 . . . . 1 . . . . . . . . . . 2 Reject 2 | . . . . . . 1 . . . . 1 . . . . . . . . . . . . . . . . Mask 3 | . . . . . . 1 1 . . . 1 . . . . . . . . . . . . . . . . Tunnel 10 | . 2 . . 8 . . . . . . . . . . . . . . . . . . . . . . . Fedlink 1 | . . . . . . . . . . . . . . . . 1 . . . . . . . . . . . Scrapoids 2 | . . . . . . . . . . . . . . . . . . . . . . . . . . . 2 Scanalyzers . | . . . . . . . . . . . . . . . . . . . . . . . . . . . . Garrison Access . | . . . . . . . . . . . . . . . . . . . . . . . . . . . . Data Cores Recovered 5 | . . . . . . . 1 . . 2 1 . . . . . . . . . . . . . . . 1 Used 2 | . . . . . . . . . . 1 . . . . . . . . . . . . . . . . 1 Hacking Detections 71 | . 8 . . 9 . 9 5 2 . 6 7 . . . . 5 . . . . 1 3 . 6 5 . 5 Full Trace Events 4 | . . . . . . 1 1 . . . . . . . . . . . . . . . . 2 . . . Feedback Events 1 | . . . . . . . . . . . . . . . . . . . . . . . . 1 . . . Corruption 1 | . . . . . . . . . . . . . . . . . . . . . . . . 1 . . . Feedback Blocked . | . . . . . . . . . . . . . . . . . . . . . . . . . . . . Robot Schematics Acquired . | . . . . . . . . . . . . . . . . . . . . . . . . . . . . Robots Built . | . . . . . . . . . . . . . . . . . . . . . . . . . . . . Authchips . | . . . . . . . . . . . . . . . . . . . . . . . . . . . . Time . | . . . . . . . . . . . . . . . . . . . . . . . . . . . . Total Robot Build Rating . | . . . . . . . . . . . . . . . . . . . . . . . . . . . . Part Schematics Acquired 6 | . . . . . . . . . . . 3 . . . . . . . 3 . . . . . . . . Parts Built 8 | . . . . . . . . . . . . . . . . . . . . . . 8 . . . . . Authchips 4 | . . . . . . . . . . . . . . . . . . . . . . 4 . . . . . Time 279 | . . . . . . . . . . . . . . . . . . . . . . 279 . . . . . Total Part Build Rating 66 | . . . . . . . . . . . . . . . . . . . . . . 66 . . . . . Parts Repaired 1 | . . . . . . 1 . . . . . . . . . . . . . . . . . . . . . Time 56 | . . . . . . 56 . . . . . . . . . . . . . . . . . . . . . Parts Recycled . | . . . . . . . . . . . . . . . . . . . . . . . . . . . . Recycled Matter . | . . . . . . . . . . . . . . . . . . . . . . . . . . . . Retrieved Matter . | . . . . . . . . . . . . . . . . . . . . . . . . . . . . Retrieved Components 34 | . 9 . . 8 . 8 1 . . . 8 . . . . . . . . . . . . . . . . Parts Scanalyzed 3 | . . . . . . . . . . . 3 . . . . . . . . . . . . . . . . Part Schematics Acquired 3 | . . . . . . . . . . . 3 . . . . . . . . . . . . . . . . Parts Damaged 1 | . . . . . . . . . . . 1 . . . . . . . . . . . . . . . . Bothacking | -11 -10 -10 -10 -9 -9 -6 -6 -6 -6 -6 -5 -5 -5 -5 -4 -4 -4 -4 -4 -3 -3 -3 -3 -2 -2 -2 -1 ------------ Run | Yrd Mat Min Sub Rec Scr Fac Ext Cet Arc Hub Fac Upp Upp War Pro Fac Upp Upp Zhi Pro Res Arm Lab Res Qua Sec Acc Used RIF Installer . | . . . . . . . . . . . . . . . . . . . . . . . . . . . . Robots Hacked 3 | . . . . . . 1 . . . . . . . . . 1 . . . . . . . . 1 . . Non-combat . | . . . . . . . . . . . . . . . . . . . . . . . . . . . . Combat . | . . . . . . . . . . . . . . . . . . . . . . . . . . . . Robot Hacks Applied . | . . . . . . . . . . . . . . . . . . . . . . . . . . . . Manual 3 | . . . . . . 1 . . . . . . . . . 1 . . . . . . . . 1 . . Relay Couplers Released 5 | . . . . . . . . . . . . . . . . . . . . . . . . . . 3 2 Machine Destruction 5 | . . . . . . . . . . . . . . . . . . . . . . . . . . 3 2 Fabnet Peak Effective % . | . . . . . . . . . . . . . . . . . . . . . . . . . . . . Robots Rewired 6 | . . . . . . . 3 . . . . . . . . . . . . . . 3 . . . . . Allies Hacked . | . . . . . . . . . . . . . . . . . . . . . . . . . . . . Hacks Repelled . | . . . . . . . . . . . . . . . . . . . . . . . . . . . . Allies | -11 -10 -10 -10 -9 -9 -6 -6 -6 -6 -6 -5 -5 -5 -5 -4 -4 -4 -4 -4 -3 -3 -3 -3 -2 -2 -2 -1 -------- Run | Yrd Mat Min Sub Rec Scr Fac Ext Cet Arc Hub Fac Upp Upp War Pro Fac Upp Upp Zhi Pro Res Arm Lab Res Qua Sec Acc Total Allies 32 | . . . . . . 1 11 5 . . . . . . . 1 . . . . . 3 . . 1 . 10 Largest Group 12 | . . . . . . 1 11 12 9 6 . . . . . 1 . . . . . 3 . . 1 . 5 Highest-Rated Group 771 | . . . . . . 14 417 771 566 500 . . . . . 21 . . . . . 150 . . 36 . 323 Highest-Rated Ally 159 | . . . . . . 14 159 159 96 96 . . . . . 21 . . . . . 50 . . 36 . 67 Total Orders 21 | . . . . . . . . 4 2 4 . . . . . . . . . . . 10 . . . . 1 STAY 9 | . . . . . . . . 3 1 4 . . . . . . . . . . . . . . . . 1 FOLLOW 2 | . . . . . . . . 1 1 . . . . . . . . . . . . . . . . . . RETURN 10 | . . . . . . . . . . . . . . . . . . . . . . 10 . . . . . Ally Attacks 536 | . . . . . . . 56 65 20 147 . . . . . . . . . . . 89 . . . . 159 Total Damage 15530 | . . . . . . . 1574 1357 708 5557 . . . . . . . . . . . 1807 . . . . 4527 Kills 81 | . . . . . . . 14 7 4 27 . . . . . . . . . . . 12 . . . . 17 Allies Corrupted 2 | . . . . . . . . . . 2 . . . . . . . . . . . . . . . . . Allies Melted 2 | . . . . . . . . . . . . . . 2 . . . . . . . . . . . . . Intel | -11 -10 -10 -10 -9 -9 -6 -6 -6 -6 -6 -5 -5 -5 -5 -4 -4 -4 -4 -4 -3 -3 -3 -3 -2 -2 -2 -1 ------- Run | Yrd Mat Min Sub Rec Scr Fac Ext Cet Arc Hub Fac Upp Upp War Pro Fac Upp Upp Zhi Pro Res Arm Lab Res Qua Sec Acc Active Infowar (turns) 26059 | 26 1508 1852 2139 159 . 1725 1105 688 510 1381 1153 653 318 800 329 1192 816 443 205 217 641 1994 360 1572 1796 861 1616 Optics 20375 | . . . . . . 1725 1105 688 510 1381 1153 653 318 800 329 1192 816 443 205 217 641 1994 360 1572 1796 861 1616 Sensors 4440 | . . . . . . 257 . . . . . . . . . . 656 441 204 217 15 . . . 1451 573 626 IFF 2132 | . . . . . . 720 83 51 426 852 . . . . . . . . . . . . . . . . . Terrain 29 | 19 10 . . . . . . . . . . . . . . . . . . . . . . . . . . Structural 3280 | . . . . . . . . . . . 270 . 164 469 . . . . . . 640 587 360 790 . . . Seismic 6201 | 26 1508 1852 2139 159 . 517 . . . . . . . . . . . . . . . . . . . . . Cloaking 7607 | . . . . . . . 44 688 24 . . . . 2 284 672 591 443 203 217 641 848 324 924 1402 300 . Jamming 9618 | . . . . . . . 978 . 182 1195 984 611 154 . . 459 84 . . . 265 1385 360 909 1680 372 . ECM 101 | . . . . . . . . . . . . . . . . . . . . . . 7 . . . . 94 Robot Analysis Total 4 | . . . . . . . . . . . . . . . . . . . 4 . . . . . . . . Derelict Logs Recovered 12 | . . 1 . . 5 . . . . . . 2 . . . . 2 2 . . . . . . . . . Drone Launches 15 | . . . . . . . . . . . . . . . . . . . . . . 15 . . . . . Drone Recoveries 15 | . . . . . . . . . . . . . . . . . . . . . . 15 . . . . . Exploration | -11 -10 -10 -10 -9 -9 -6 -6 -6 -6 -6 -5 -5 -5 -5 -4 -4 -4 -4 -4 -3 -3 -3 -3 -2 -2 -2 -1 ------------- Run | Yrd Mat Min Sub Rec Scr Fac Ext Cet Arc Hub Fac Upp Upp War Pro Fac Upp Upp Zhi Pro Res Arm Lab Res Qua Sec Acc Turns Passed 29986 | 136 1767 2317 2214 978 2199 1725 1105 688 510 1381 1153 653 318 800 329 1192 816 443 205 217 641 1994 360 1572 1796 861 1616 Spaces Moved 18828 | 56 801 1064 1365 590 1636 1110 672 333 265 701 787 544 264 603 206 739 588 380 162 179 483 879 208 845 1144 491 1733 Core 143 | 3 . . 1 . 133 . . . . . . . . . . . . . . . . 6 . . . . . Treads 3308 | 53 801 1064 531 . . . . . . 130 . . . . . . . . . . . 527 . . . 202 . Legs 9628 | . . . . . . 235 672 333 265 571 787 544 264 603 206 739 588 380 162 179 483 346 208 845 1144 74 . Wheels 3801 | . . . 833 590 1503 875 . . . . . . . . . . . . . . . . . . . . . Hover 1630 | . . . . . . . . . . . . . . . . . . . . . . . . . . . 1630 Flight 160 | . . . . . . . . . . . . . . . . . . . . . . . . . . 78 82 Fastest Speed 24 | 50 160 160 107 90 50 120 120 120 120 120 100 100 100 98 100 98 108 111 111 111 111 111 111 111 110 35 24 Average Speed 119 | 154 160 161 135 119 125 128 120 123 120 143 100 104 112 99 100 99 109 111 111 111 122 158 111 113 114 138 60 Slowest Speed 1850 | 160 160 240 700 125 165 192 195 195 120 240 100 170 170 100 100 169 111 111 111 111 182 1850 111 184 182 330 440 Overloaded Moves . | . . . . . . . . . . . . . . . . . . . . . . . . . . . . Propulsion Burnouts . | . . . . . . . . . . . . . . . . . . . . . . . . . . . . Robots Hopped 2 | . . . . . . . . . . . . . . . . . . . . . . . . . . 1 1 Potential Cave-ins 3 | . . . . . . . . . . . . . . . . . . 3 . . . . . . . . . Cave-ins Triggered . | . . . . . . . . . . . . . . . . . . . . . . . . . . . . Teleports 3 | . . . . . . . . . . . . . . . . . . . . . . 1 . 1 . 1 . Microwarps 14 | . . . . . . . . . . . . . . . . . . . . . . . . . . 13 1 Exploration Rate (%) 60 | 5 95 100 80 97 92 34 82 70 93 70 22 88 46 76 45 26 70 65 61 43 17 44 91 34 76 32 44 Regions Visited 27 Branch Regions 20 Pre-discovered Areas 25 | . 3 1 . 8 6 . . . . . . 1 . 1 . . 2 . 3 . . . . . . . . Known Exits Taken 12 | . . 1 1 . 1 1 . . . 1 . 1 1 . 1 1 . . . 1 1 . 1 . . . . Unknown Exits Taken 15 | 1 1 . . 1 . . 1 1 1 . 1 . . 1 . . 1 1 1 . . 1 . 1 1 1 . Scrap Searched 30 | . . 1 8 . 11 . . . . . . 3 3 . . . 3 1 . . . . . . . . . Spaces Dug 326 | . 19 137 3 5 . 7 . . 3 13 13 3 . 1 1 10 4 7 . 2 . 3 . 7 33 32 23 Terrain Destroyed 2087 | . 45 287 11 6 . 111 41 15 30 454 165 9 . 43 72 230 33 8 . 4 . 70 . 92 121 206 34 Melee 19 | . . . . . . 5 . . . . . . . 1 . . . . . . . . . . . . 13 Projectile 658 | . 11 . 11 6 . 17 41 15 30 95 83 9 . 14 8 122 32 8 . 3 . 45 . 22 30 35 21 AOE 1383 | . 34 287 . . . 89 . . . 359 81 . . 28 64 107 . . . . . 22 . 52 89 171 . Terrain Rammed . | . . . . . . . . . . . . . . . . . . . . . . . . . . . . Walls Destroyed . | . . . . . . . . . . . . . . . . . . . . . . . . . . . . Machines Disabled . | . . . . . . . . . . . . . . . . . . . . . . . . . . . . Actions | -11 -10 -10 -10 -9 -9 -6 -6 -6 -6 -6 -5 -5 -5 -5 -4 -4 -4 -4 -4 -3 -3 -3 -3 -2 -2 -2 -1 --------- Run | Yrd Mat Min Sub Rec Scr Fac Ext Cet Arc Hub Fac Upp Upp War Pro Fac Upp Upp Zhi Pro Res Arm Lab Res Qua Sec Acc Total 23641 | 78 1160 1559 1562 828 1786 1293 876 540 385 891 966 611 280 741 311 975 704 389 186 186 523 1278 318 1140 1454 558 2063 Wait 2081 | . 251 410 55 183 81 32 103 92 72 45 17 37 . 46 92 70 74 . . . 5 140 69 36 106 14 51 Move 18652 | 55 800 1063 1364 589 1635 1109 671 332 264 700 786 543 263 602 205 738 587 379 161 178 482 878 207 844 1143 364 1710 Hop 2 | . . . . . . . . . . . . . . . . . . . . . . . . . . 1 1 Pick Up 298 | 3 19 3 13 14 38 18 6 15 1 12 21 2 3 12 . 13 6 . 4 . 6 31 5 13 15 11 14 Fast Attach 206 | 7 . 2 3 1 3 13 3 8 4 7 2 2 1 3 . 8 2 . 6 . 4 27 2 18 16 15 49 Attach 140 | . 1 3 4 1 5 10 1 4 . 9 2 1 1 4 2 10 3 . 1 . 2 23 2 15 9 16 11 Detach 94 | . . 2 . . 1 2 4 3 2 7 . 4 . 2 . 2 . . . . 1 13 2 8 10 14 17 Swap 383 | 1 17 13 18 1 3 25 10 12 6 7 38 5 4 25 4 23 6 2 5 . 8 26 4 40 22 15 43 Drop 310 | . 6 3 14 7 20 25 3 23 2 15 12 3 4 21 1 3 3 . 9 . 9 26 7 25 25 15 29 Fire 1319 | 12 63 51 91 32 . 41 42 51 34 87 86 13 4 25 7 96 22 8 . 8 4 93 20 138 102 87 102 Melee 51 | . . . . . . 18 . . . . . . . 1 . . . . . . . . . . . . 32 Ram 4 | . . . . . . . . . . . . . . . . . . . . . . . . . . . 4 Kick 36 | . . . . . . . 3 . . 2 2 1 . . . 12 1 . . . 2 4 . 3 6 . . Crush 18 | . 3 9 . . . . . . . . . . . . . . . . . . . . . . . 6 . Escape Stasis 10 | . . . . . . . 5 . . . . . . . . . . . . . . 5 . . . . . Rewire 37 | . . . . . . . 25 . . . . . . . . . . . . . . 12 . . . . . Trap . | . . . . . . . . . . . . . . . . . . . . . . . . . . . . Miscellaneous . | . . . . . . . . . . . . . . . . . . . . . . . . . . . . Route ------- -11/Scrapyard -10/Materials (discovered 5 exits: [*Mat x3] / [*Min] / Sub) -10/Mines (discovered 3 exits: [*Mat x2] / *Sub) -10/Subcaves (discovered 2 exits: [*Mat] / *Rec) -9/Recycling (discovered 2 exits: [*Fac] / *Scr) -9/Scraptown (discovered 2 exits: *Fac x2) -6/Factory (discovered 5 exits: *Fac / *Low x2 / *Ext x2) -6/Extension (discovered 2 exits: *Fac / *Cet) -6/Cetus (discovered 2 exits: *Fac / [*Arc]) -6/Archives (discovered 3 exits: *Fac / *Hub x2) -6/Hub_04(d) (discovered 3 exits: *Fac x3) -5/Factory (discovered 3 exits: *Fac x2 / *Upp) -5/Upper Caves -5/Upper Caves (discovered 2 exits: Fac / *War) -5/Warlord -4/Proximity Caves -4/Factory (discovered 6 exits: *Res x4 / *Upp x2) -4/Upper Caves -4/Upper Caves (discovered 2 exits: *Res / *Zhi) -4/Zhirov -3/Proximity Caves -3/Research (discovered 5 exits: Res x2 / *Arm / Tes x2) -3/Armory (discovered 3 exits: Res x2 / [*Lab]) -3/Lab -2/Research -2/Quarantine (discovered 3 exits: *Acc / [*Sec] / [*Frg]) -2/Section 7 -1/Access To Fleet Rendezvous History --------- Turn | Location | Event 2 | -11/Scrapyard | Met Revision 17 15 | -11/Scrapyard | Discovered new exit (range 15) 137 | -11/Scrapyard | Entered Materials 300 | -10/Materials | Build established: Mutant 549 | -10/Materials | Discovered new exit (range 11) 908 | -10/Materials | Discovered new exit (range 16) 1124 | -10/Materials | Discovered new exit (range 13) 1188 | -10/Materials | Discovered new exit (range 6) 1588 | -10/Materials | Learned 4 Subcaves zone layouts 1656 | -10/Materials | Loaded intel: 6 trap records 1712 | -10/Materials | Identified exit to Subcaves 1756 | -10/Materials | Learned location of 3 exits from Materials 1904 | -10/Materials | Entered Mines 1944 | -10/Mines | Learned location of Zion (-6) 2078 | -10/Mines | Assembled infested the area 2083 | -10/Mines | Assisted by a Guerilla fighting off Assembled 2238 | -10/Mines | Discovered new exit (range 9) 2898 | -10/Mines | Discovered new exit (range 9) 2905 | -10/Mines | Destroyed 7 combat bots 4207 | -10/Mines | Discovered exit to Subcaves (range 8) 4221 | -10/Mines | Entered Subcaves 4222 | -10/Subcaves | Identified exit to Recycling 4236 | -10/Subcaves | Shifting Twisted Machinery released Sub. Optics 4257 | -10/Subcaves | Shifting Twisted Machinery released Barrage Gun 4479 | -10/Subcaves | Visited 4L-MR0's lab 4503 | -10/Subcaves | Found Arachnoskeleton 4621 | -10/Subcaves | Visited Clippyterm 4626 | -10/Subcaves | Learned 40 Factory zone layouts 4626 | -10/Subcaves | Learned Factory garrison access intel 5076 | -10/Subcaves | Shifting Twisted Machinery released Battle Cannon 5085 | -10/Subcaves | Shifting Twisted Machinery released Mak. Light Armor Plating 5749 | -10/Subcaves | Core integrity fell below 50% 5783 | -10/Subcaves | Lost 4 parts (1p3n) 5871 | -10/Subcaves | Discovered new exit (range 13) 6329 | -10/Subcaves | Ambushed by angry Subdweller bent on revenge 6435 | -10/Subcaves | Entered Recycling 6517 | -9/Recycling | Scanned before Scraplab entrance 6589 | -9/Recycling | Entered Scraplab 6818 | -9/Recycling | Core integrity fell below 20% 6877 | -9/Recycling | Build established: Subdweller-Mutant 7195 | -9/Recycling | Discovered new exit (range 5) 7270 | -9/Recycling | Learned 2 Materials zone layouts 7329 | -9/Recycling | Learned location of 2 exits from Materials 7411 | -9/Recycling | Discovered new exit (range 2) 7413 | -9/Recycling | Entered Scraptown 7545 | -9/Scraptown | Visited UFD Registry 7545 | -9/Scraptown | Registered with UFD as "Scrapbot" 7554 | -9/Scraptown | Visited TADAMA 7580 | -9/Scraptown | Visited The Evicted 7610 | -9/Scraptown | Visited Fellowship of the Rings 7632 | -9/Scraptown | Visited Shadow of the Wyrm 7644 | -9/Scraptown | Visited Bundlers 7682 | -9/Scraptown | Build established: Mutant 7801 | -9/Scraptown | Scanned Subdweller tech in exchange for log data 7810 | -9/Scraptown | Learned Factory security intel 7811 | -9/Scraptown | Learned Factory garrison access intel 7825 | -9/Scraptown | Discovered new exit (range 13) 7961 | -9/Scraptown | Heard Great Nut preacher, LISTEN AND RECITE! 8362 | -9/Scraptown | Visited Assassins FH 8473 | -9/Scraptown | Visited Junk Repository 8494 | -9/Scraptown | Build established: Derelict-Mutant 8539 | -9/Scraptown | Visited Science Guys 8587 | -9/Scraptown | Visited Science Testing Area 8653 | -9/Scraptown | Delivered Scrap Shield to a Scientist 8703 | -9/Scraptown | Visited Scrap Suit Storage 8729 | -9/Scraptown | Visited Derelict Rescue Squad 8808 | -9/Scraptown | Found DRS Beacon 8828 | -9/Scraptown | Build established: Mutant 8833 | -9/Scraptown | Visited A0-MCA Data Center 8843 | -9/Scraptown | Given a B+ rating by A0-MCA 8852 | -9/Scraptown | Found A0-MCA's Component Scanner 8873 | -9/Scraptown | Visited Abandonware Association 8885 | -9/Scraptown | Learned abandonware demo "HACKBUD.EXE" 8885 | -9/Scraptown | Learned abandonware demo "REPAIR.EXE" 8911 | -9/Scraptown | Visited Research Penetration Think Tank 8940 | -9/Scraptown | Visited Curators Association 8982 | -9/Scraptown | Visited Cartography Club 9039 | -9/Scraptown | Learned location of Lower Caves (-7) 9039 | -9/Scraptown | Learned 12 Upper Caves zone layouts 9039 | -9/Scraptown | Learned 24 Upper Caves zone layouts 9039 | -9/Scraptown | Learned 12 Proximity Caves zone layouts 9039 | -9/Scraptown | Learned 16 Proximity Caves zone layouts 9039 | -9/Scraptown | Learned 24 Proximity Caves zone layouts 9039 | -9/Scraptown | Learned 20 Proximity Caves zone layouts 9039 | -9/Scraptown | Learned location of 1 exit from Research 9039 | -9/Scraptown | Learned location of 2 exits from Research 9039 | -9/Scraptown | Learned location of 3 exits from Proximity Caves 9039 | -9/Scraptown | Identified exit to Factory 9054 | -9/Scraptown | Found Deep Structural Scanner 9550 | -9/Scraptown | Met Optimus 9550 | -9/Scraptown | Accepted into 0bPrime 9612 | -9/Scraptown | Entered Factory 9612 | -6/Factory | Evolved 8 slots: Power x1, Propulsion x1, Utility x5, Weapon x1 9613 | -6/Factory | Identified exit to Factory 9613 | -6/Factory | Identified exit to Lower Caves 9614 | -6/Factory | Identified exit to Extension 9616 | -6/Factory | Loaded intel: 4 garrison access locations 10718 | -6/Factory | Repaired Enh. Gauss Cannon? 11025 | -6/Factory | Attached Arachnoskeleton, gained temporary slots: Propulsion x3 11055 | -6/Factory | Build established: Hacker-Skirmisher 11275 | -6/Factory | Found Prototype Launcher 11275 | -6/Factory | Identified Scatter Rocket Array 11282 | -6/Factory | Found Scatter Rocket Array 11337 | -6/Factory | Entered Extension 11547 | -6/Extension | Rescued A7 11732 | -6/Extension | Build established: Hacker-Tank 11814 | -6/Extension | Rescued a captive Derelict 11814 | -6/Extension | Rescued a captive Derelict 11977 | -6/Extension | Spotted B-75 Beast 11987 | -6/Extension | Destroyed B-75 Beast 11997 | -6/Extension | Spotted B-75 Beast 12007 | -6/Extension | Allies destroyed B-75 Beast 12062 | -6/Extension | Rescued a captive Derelict 12132 | -6/Extension | Rescued a captive Derelict 12134 | -6/Extension | Rescued a captive Derelict 12241 | -6/Extension | Build established: Gunner 12313 | -6/Extension | Rescued a captive Derelict 12316 | -6/Extension | Rescued a captive Derelict 12370 | -6/Extension | Discovered exit to Factory (range 10) 12373 | -6/Extension | Discovered new exit (range 6) 12442 | -6/Extension | Entered Cetus 12442 | -6/Cetus | Accompanied by 11 allies (A7) 12447 | -6/Cetus | Acquired a Cetus Manufacturing Module code from A7 12455 | -6/Cetus | Spotted Cetus Guard 12456 | -6/Cetus | Spotted Cetus Guard 12462 | -6/Cetus | Spotted Cetus Guard 12465 | -6/Cetus | Spotted Cetus Guard 12474 | -6/Cetus | Allies destroyed Cetus Guard 12477 | -6/Cetus | Destroyed Cetus Guard 12486 | -6/Cetus | Allies destroyed Cetus Guard 12493 | -6/Cetus | Destroyed Cetus Guard 12592 | -6/Cetus | Discovered new exit (range 21) 12615 | -6/Cetus | Spotted Cetus Guard 12616 | -6/Cetus | Spotted Cetus Guard 12620 | -6/Cetus | Discovered exit to Factory (range 22) 12622 | -6/Cetus | Spotted Cetus Guard 12625 | -6/Cetus | Spotted Cetus Guard 12631 | -6/Cetus | Allies destroyed Cetus Guard 12636 | -6/Cetus | Allies destroyed Cetus Guard 12638 | -6/Cetus | Destroyed Cetus Guard 12644 | -6/Cetus | Destroyed Cetus Guard 12663 | -6/Cetus | System corruption reached 10% 12668 | -6/Cetus | Met Revision 17 12800 | -6/Cetus | Build established: Scavenger-Gunner 12803 | -6/Cetus | Started Cetus Manufacturing Module 12828 | -6/Cetus | Manufactured an Enhanced Grunt 12853 | -6/Cetus | Manufactured an Enhanced Grunt 12878 | -6/Cetus | Manufactured an Enhanced Grunt 12903 | -6/Cetus | Manufactured an Enhanced Grunt 12928 | -6/Cetus | Manufactured an Enhanced Grunt 13044 | -6/Cetus | Murdered A7 13048 | -6/Cetus | Extracted ID and sensor layout for unrecognized location from A7's data core 13061 | -6/Cetus | Found Prototype Protection 13061 | -6/Cetus | Identified Med. Regenerative Plating 13130 | -6/Cetus | Entered Archives 13130 | -6/Archives | Accompanied by 10 allies 13170 | -6/Archives | Discovered new exit (range 22) 13178 | -6/Archives | Discovered new exit (range 22) 13186 | -6/Archives | Discovered exit to Factory (range 20) 13187 | -6/Archives | Lost 4 allies 13351 | -6/Archives | Build established: Scavenger-Skirmisher 13640 | -6/Archives | Entered Hub_04(d) 13640 | -6/Hub_04(d) | Accompanied by 6 allies 13702 | -6/Hub_04(d) | Discovered exit to Factory (range 7) 14153 | -6/Hub_04(d) | Discovered exit to Factory (range 9) 14190 | -6/Hub_04(d) | Discovered exit to Factory (range 14) 14396 | -6/Hub_04(d) | Network Hub disabled 14470 | -6/Hub_04(d) | Spotted Lightning 14472 | -6/Hub_04(d) | Spotted Lightning 14473 | -6/Hub_04(d) | Spotted Lightning 14487 | -6/Hub_04(d) | Destroyed Lightning 14493 | -6/Hub_04(d) | Destroyed Lightning 14522 | -6/Hub_04(d) | Destroyed Lightning 14523 | -6/Hub_04(d) | Lost 3 parts (2n1u) 14529 | -6/Hub_04(d) | Found Prototype Processor 14529 | -6/Hub_04(d) | Identified Exp. Targeting Computer 14535 | -6/Hub_04(d) | Found Prototype Device 14535 | -6/Hub_04(d) | Identified Exp. Phase Shifter 14551 | -6/Hub_04(d) | Found Prototype Device 14551 | -6/Hub_04(d) | Identified Exp. EM Shield 14562 | -6/Hub_04(d) | Found Exp. EM Shield 14572 | -6/Hub_04(d) | Spotted Lightning 14572 | -6/Hub_04(d) | Spotted Lightning 14572 | -6/Hub_04(d) | Spotted Lightning 14587 | -6/Hub_04(d) | Core integrity fell below 50% 14595 | -6/Hub_04(d) | Destroyed Lightning 14608 | -6/Hub_04(d) | Destroyed Lightning 14624 | -6/Hub_04(d) | Destroyed Lightning 14714 | -6/Hub_04(d) | Found Exp. EM Shield 14735 | -6/Hub_04(d) | Found Exp. EM Shield 14749 | -6/Hub_04(d) | Found Prototype Energy Cannon 14752 | -6/Hub_04(d) | Identified EMDS 14827 | -6/Hub_04(d) | Build established: Scavenger-Tank 14887 | -6/Hub_04(d) | Garrison activated, responded to threat 14931 | -6/Hub_04(d) | Network Hub disabled 14964 | -6/Hub_04(d) | Network Hub disabled 15021 | -6/Hub_04(d) | Entered Factory 15021 | -5/Factory | Evolved 2 slots: Propulsion x2 15022 | -5/Factory | Loaded intel: 4 garrison access locations 15304 | -5/Factory | Build established: Scavenger-Gunner 15541 | -5/Factory | Discovered new exit (range 6) 15564 | -5/Factory | Identified exit to Factory 15877 | -5/Factory | Spotted B-75 Beast 15921 | -5/Factory | First assault squad dispatched 16059 | -5/Factory | Discovered new exit (range 18) 16086 | -5/Factory | Discovered exit to Factory (range 21) 16174 | -5/Factory | Entered Upper Caves 16175 | -5/Upper Caves | Identified exit to Upper Caves 16176 | -5/Upper Caves | UFD Scientist delivered a prototype 16178 | -5/Upper Caves | Found Prototype Protection 16181 | -5/Upper Caves | Identified Enh. Scrap Shield 16283 | -5/Upper Caves | Learned Factory trap positions 16365 | -5/Upper Caves | Learned Armory garrison access intel 16365 | -5/Upper Caves | Learned Factory terminal intel 16365 | -5/Upper Caves | Learned Extension stockpile data 16365 | -5/Upper Caves | Learned Research trap positions 16463 | -5/Upper Caves | Learned Factory stockpile data 16772 | -5/Upper Caves | Found Alien Artifact 16827 | -5/Upper Caves | Entered another Upper Caves area 16828 | -5/Upper Caves | Identified exit to Warlord 16872 | -5/Upper Caves | Found DCF Scrap (14 items) 17145 | -5/Upper Caves | Entered Warlord 17304 | -5/Warlord | Rebuked by Warlord 17329 | -5/Warlord | Warlord's base attacked by MAIN.C 17437 | -5/Warlord | Learned Quarantine stockpile data 17438 | -5/Warlord | Learned 4 Armory zone layouts 17438 | -5/Warlord | Learned 4 Testing zone layouts 17439 | -5/Warlord | Learned Factory fabricator intel 17471 | -5/Warlord | Met EX-DEC 17479 | -5/Warlord | Found Prototype Energy Gun 17480 | -5/Warlord | Identified Vortex Shotgun 17483 | -5/Warlord | Found Vortex Shotgun 17492 | -5/Warlord | Found Prototype Energy Cannon 17599 | -5/Warlord | Found Prototype Device 17599 | -5/Warlord | Identified Exp. Focal Shield 17618 | -5/Warlord | Found Prototype Device 17618 | -5/Warlord | Identified Exp. Cloaking Device 17624 | -5/Warlord | Found Prototype Reactor 17624 | -5/Warlord | Identified Vortex Chain Reactor 17679 | -5/Warlord | Warlord forces counterattacked 17698 | -5/Warlord | Spotted Executioner 17708 | -5/Warlord | Destroyed Executioner 17717 | -5/Warlord | Spotted Striker 17730 | -5/Warlord | Destroyed Striker 17749 | -5/Warlord | Spotted B-86 Titan 17753 | -5/Warlord | Spotted Executioner 17754 | -5/Warlord | Lost 3 allies 17762 | -5/Warlord | Destroyed B-86 Titan 17792 | -5/Warlord | Found Prototype Device 17792 | -5/Warlord | Identified Adv. Kinecellerator 17825 | -5/Warlord | Lost 9 allies 17827 | -5/Warlord | Discovered new exit (range 15) 17829 | -5/Warlord | Spotted B-75 Beast 17829 | -5/Warlord | Spotted Executioner 17829 | -5/Warlord | Spotted B-86 Titan 17829 | -5/Warlord | Spotted Striker 17834 | -5/Warlord | Destroyed Executioner 17838 | -5/Warlord | Destroyed B-86 Titan 17846 | -5/Warlord | Destroyed Striker 17867 | -5/Warlord | Destroyed 13 combat bots 17869 | -5/Warlord | Lost 3 allies 17932 | -5/Warlord | Spotted Executioner 17945 | -5/Warlord | Spotted Striker 17945 | -5/Warlord | Entered Proximity Caves 17971 | -4/Proximity Caves | Lost 6 allies 17980 | -4/Proximity Caves | Ambushed by research squad 18274 | -4/Proximity Caves | Entered Factory 18274 | -4/Factory | Evolved 2 slots: Propulsion x1, Weapon x1 18275 | -4/Factory | Loaded intel: 84 trap records 18277 | -4/Factory | Loaded intel: 26 terminal locations 18278 | -4/Factory | Loaded intel: 6 fabricator locations 18412 | -4/Factory | Discovered new exit (range 8) 18491 | -4/Factory | Identified exit to Research 18660 | -4/Factory | Identified exit to Upper Caves 18795 | -4/Factory | Loaded intel: 8 recycling unit locations 18989 | -4/Factory | Cargo convoy interrupted 19143 | -4/Factory | Destroyed 7 combat bots 19206 | -4/Factory | Destroyed 7 combat bots 19209 | -4/Factory | Lost 9 parts (1p3n1u4w) 19274 | -4/Factory | First assault squad dispatched 19283 | -4/Factory | Lost 3 parts (1n1u1w) 19466 | -4/Factory | Entered Upper Caves 19566 | -4/Upper Caves | Lost 3 parts (1p1u1w) 19845 | -4/Upper Caves | Encountered a Warlord checkpoint 19862 | -4/Upper Caves | Attracted the attention of an 0b10 checkpoint 19954 | -4/Upper Caves | Lost 3 allies 20178 | -4/Upper Caves | Discovered new exit (range 10) 20282 | -4/Upper Caves | Entered another Upper Caves area 20316 | -4/Upper Caves | Spotted B-86 Titan 20322 | -4/Upper Caves | Learned Research terminal intel 20368 | -4/Upper Caves | Discovered exit to Research (range 12) 20582 | -4/Upper Caves | Learned Research terminal intel 20665 | -4/Upper Caves | Discovered new exit (range 10) 20725 | -4/Upper Caves | Entered Zhirov 20725 | -4/Zhirov | Discovered new exit (range 3) 20747 | -4/Zhirov | Met Zhirov 20767 | -4/Zhirov | Learned location of Testing (-3) 20777 | -4/Zhirov | Zhirov requested help retrieving the SGEMP Prototype 20795 | -4/Zhirov | Found Alien Artifact 20808 | -4/Zhirov | Found Alien Artifact 20808 | -4/Zhirov | Identified Integrated Dissipator 20808 | -4/Zhirov | Installed Integrated Dissipator, increased core heat dissipation (+20) 20930 | -4/Zhirov | Entered Proximity Caves 21147 | -3/Proximity Caves | Entered Research 21147 | -3/Research | Evolved 2 slots: Utility x2 21148 | -3/Research | Identified exit to Armory 21149 | -3/Research | Identified exit to Research 21149 | -3/Research | Identified exit to Testing 21150 | -3/Research | Loaded intel: 91 trap records 21151 | -3/Research | Loaded intel: 23 terminal locations 21181 | -3/Research | Identified BFG-9k Vortex Edition 21181 | -3/Research | Identified Dimensional Node Initializer 21181 | -3/Research | Identified Transdimensional Reconstructor 21347 | -3/Research | Revision forces began assault on 0b10 21389 | -3/Research | Met up with Revision 17++ 21788 | -3/Research | Entered Armory 22036 | -3/Armory | Lost 15 parts (2p5n5u3w) 22216 | -3/Armory | Fabricated Enh. Nova Cannon (x2) 22224 | -3/Armory | Fabricated Enh. Biometal Leg (x1) 22290 | -3/Armory | Fabricated Enh. Biometal Leg (x1) 22332 | -3/Armory | Fabricated Exp. Optical Array (x1) 22501 | -3/Armory | Fabricated Assault Drone Bay (x1) 23119 | -3/Armory | Fabricated Lgt. Quantum Reactor (x2) 23159 | -3/Armory | Build established: Machinist-Tank 23229 | -3/Armory | Warped through subspace to slip node 23229 | -3/Armory | Discovered new exit (range 1) 23427 | -3/Armory | Found Prototype Launcher 23427 | -3/Armory | Identified Tactical Quantum Warhead 23432 | -3/Armory | Found Prototype Device 23432 | -3/Armory | Identified Exp. Thermal Defense Suite 23437 | -3/Armory | Found Prototype Device 23437 | -3/Armory | Identified Exp. ECM Suite 23445 | -3/Armory | Found Prototype Processor 23445 | -3/Armory | Identified Exp. Melee Analysis Suite 23481 | -3/Armory | P-80 Master assimilated allied Rainmaker 8b 23640 | -3/Armory | Discovered exit to Research (range 8) 23660 | -3/Armory | Build established: Scavenger-Tank 23704 | -3/Armory | Found Hellfire Missile Launcher 23706 | -3/Armory | Found Hellfire Missile Launcher 23710 | -3/Armory | Found Prototype Launcher 23710 | -3/Armory | Identified Adv. Micro-nuke Launcher 23782 | -3/Armory | Entered Lab 23784 | -3/Lab | Discovered exit to Research (range 9) 23796 | -3/Lab | Hidden lab's door opened automatically 23796 | -3/Lab | Sensor layout match revealed 23797 | -3/Lab | Gained access to the hidden lab's interior 23861 | -3/Lab | Found Alien Artifact 23861 | -3/Lab | Identified Core Regenerator 23861 | -3/Lab | Used Core Regenerator, restored core integrity (+325) 23870 | -3/Lab | Found Integrated Dissipator 23870 | -3/Lab | Installed Integrated Dissipator, increased core heat dissipation (+20) 23879 | -3/Lab | Found Transdimensional Reconstructor 23911 | -3/Lab | Found Prototype Hackware 23953 | -3/Lab | Found Prototype Protection 23955 | -3/Lab | Identified Exp. Powered Armor 24096 | -3/Lab | Found Prototype Energy Cannon 24142 | -3/Lab | Entered Research 24142 | -2/Research | Evolved 2 slots: Weapon x2 24143 | -2/Research | Loaded intel: 23 terminal locations 24158 | -2/Research | Identified Quantum Router 24273 | -2/Research | Identified Potential Cannon 24797 | -2/Research | Found Gamma Bomb Array 24881 | -2/Research | Spotted B-90 Cyclops 24975 | -2/Research | Spotted B-90 Cyclops 25054 | -2/Research | Garrison activated, responded to threat 25137 | -2/Research | Cargo convoy interrupted 25139 | -2/Research | Spotted Striker 25167 | -2/Research | Destroyed Striker 25190 | -2/Research | Lost 3 parts (1p2w) 25204 | -2/Research | Destroyed 14 combat bots 25314 | -2/Research | Destroyed 7 combat bots 25358 | -2/Research | Build established: Executioner 25460 | -2/Research | Warped through subspace 25667 | -2/Research | Discovered new exit (range 21) 25667 | -2/Research | Spotted B-90 Cyclops 25682 | -2/Research | System corruption reached 10% 25714 | -2/Research | Entered Quarantine 25925 | -2/Quarantine | Found Alien Artifact 26048 | -2/Quarantine | Build established: Infiltrator-Executioner 26214 | -2/Quarantine | First assault squad dispatched 26240 | -2/Quarantine | Cryocooling Duct disabled 26255 | -2/Quarantine | Ambient heat levels rising (+20) 26255 | -2/Quarantine | Non-combat units ordered to evacuate 26276 | -2/Quarantine | Found Exp. Signal Interpreter 26369 | -2/Quarantine | Garrison activated, responded to threat 26757 | -2/Quarantine | Discovered new exit (range 10) 26784 | -2/Quarantine | Found Alien Artifact 26871 | -2/Quarantine | Found Transdimensional Reconstructor 26878 | -2/Quarantine | Found Alien Artifact 27233 | -2/Quarantine | Destroyed 9 combat bots 27313 | -2/Quarantine | Spotted Fortress 27461 | -2/Quarantine | Lost 3 parts (1p2u) 27504 | -2/Quarantine | Discovered new exit (range 6) 27504 | -2/Quarantine | Discovered new exit (range 7) 27510 | -2/Quarantine | Entered Section 7 27518 | -2/Section 7 | Found Exp. Core Analyzer 27562 | -2/Section 7 | Found Alien Artifact 27562 | -2/Section 7 | Identified Core Reset Matrix 27562 | -2/Section 7 | Identified Phase Armor 27562 | -2/Section 7 | Identified Hpw. Transdimensional Reconstructor 27562 | -2/Section 7 | Identified Terrabomb 27562 | -2/Section 7 | Used Core Reset Matrix 27566 | -2/Section 7 | Detected hypermatrix surge 27566 | -2/Section 7 | Sensed 18 artifacts in vicinity 27866 | -2/Section 7 | Destroyed 11 combat bots 27889 | -2/Section 7 | High security lockdown imminent 27952 | -2/Section 7 | Lost 4 parts (2u2w) 27969 | -2/Section 7 | High security lockdown engaged 28027 | -2/Section 7 | Core integrity fell below 50% 28051 | -2/Section 7 | Destroyed Striker 28051 | -2/Section 7 | Spotted Executioner 28051 | -2/Section 7 | Spotted Striker 28097 | -2/Section 7 | Destroyed Executioner 28118 | -2/Section 7 | Destroyed 17 combat bots 28142 | -2/Section 7 | Spotted S7 Guard 28154 | -2/Section 7 | Found Core Membrane 28154 | -2/Section 7 | Installed Core Membrane, gained immunity to corruption 28200 | -2/Section 7 | Spotted Executioner 28210 | -2/Section 7 | Found Microwarp Drive 28240 | -2/Section 7 | Spotted Executioner 28245 | -2/Section 7 | Spotted S7 Guard 28254 | -2/Section 7 | Found Core Physics Calibrator 28257 | -2/Section 7 | Spotted B-90 Cyclops 28258 | -2/Section 7 | Warped through subspace 28259 | -2/Section 7 | Core integrity fell below 20% 28307 | -2/Section 7 | Spotted Executioner 28359 | -2/Section 7 | Discovered new exit (range 21) 28371 | -2/Section 7 | Entered Access 28371 | -1/Access | Evolved 2 slots (calibrated): Power x1, Propulsion x2, Utility x3, -Weapon x4 28384 | -1/Access | Spotted B-99 Colossus 28452 | -1/Access | Build established: Alien-Mutant 28527 | -1/Access | Scrapoids reinforcements arrived? 28543 | -1/Access | Allies destroyed B-99 Colossus 28618 | -1/Access | Lost 4 allies 28621 | -1/Access | First assault squad dispatched 28734 | -1/Access | Found Prototype Ballistic Gun 28734 | -1/Access | Identified Multirail 28754 | -1/Access | Found Multirail 28882 | -1/Access | Garrison activated, responded to threat 29024 | -1/Access | Lost 5 parts (1p3n1u) 29232 | -1/Access | Spotted B-99 Colossus 29332 | -1/Access | Build established: Scavenger-Scout 29765 | -1/Access | Scrapoids reinforcements arrived? 29766 | -1/Access | Lost 4 parts (1p2u1w) 29770 | -1/Access | High security lockdown imminent 29818 | -1/Access | Lost 3 allies 29850 | -1/Access | High security lockdown engaged 29927 | -1/Access | Destroyed 10 combat bots 29938 | -1/Access | Lost 3 parts (1p1u1w) 29959 | -1/Access | Discovered new exit (range 6) 29987 | -1/Access | Identified exit to Surface 29987 | *** | Heading to fleet! Last Messages --------------- 29959_ Destroyed Lgt. Antimatter Reactor. 29959_ Destroyed Unknown Leg. 29959_ EXIT=FOUND 29959_ U-05 Engineer lays Concrete. 29964_ L-61 Swordsman destroyed. 29964_ U-05 Engineer lays Concrete. 29967_ Acquired 46 matter. 29968_ U-05 Engineer lays Concrete. 29968_ Acquired 7 matter. 29969_ U-05 Engineer lays Concrete. 29970_ ALERT: Assault forces dispatched. 29970_ U-05 Engineer lays Concrete. 29974_ Terminal disabled. 29974_ U-05 Engineer lays Concrete. 29977_ Dropped Potential Cannon. 29978_ Acquired Potential Cannon. 29982_ Quantum Reactor destroyed. 29985_ U-05 Engineer lays Concrete. 29987_ EXIT=IDENTIFIED: SURFACE 29987_ U-05 Engineer lays Concrete. Map ----- +----------------------------------------------------+ | ?????????? #???????######?????# # #??????? | | ?????????? ????????# #?????# # = ######## | | ?????????? " ????????#! #?????# + =## | | #????????? ????????# #?????# # == ## | | ??????????# #????????# = ###???# # = ## | | ??????????# #????????# + #???# # ## | | ??????????# #????????# # #???# ######### | | ??????????# #????????# ] # #####! # | | ??????????# #?????? # + = ![ + | | ??????????# #???? # * #+###### # | | ########### #??" "" ###### ???# # | | [!* # "R"" #????# ?# ####### | | [! + """ #????# ## ###??# | | +########## # #????#!!! ## #??# | | ????????# #?? #????#!!! ########### #??# | | ????????# #????#####????#!!! #?????????# #### | | ???????# #?????????????# #?????????# # | | ???????# #?????????????#######?????????# # | | "??????# #?????????????????????????????# + | | ""??????# #######"######?###????????????# # | | ""????## """T"""" ?? "????????????# # | | "????#" "" """" ??? "????????????# # | | ????# " """""" "????????????# # | | ????# " " " "??????????? # | | ????# " "" " "?????????? ## | | ????# " @" " "????????? #? | | ######????# " "???????? #? | | ??????????# u "??????? ###/####? | | ??????????# " u "?????? ?? ???? | | ??????????# " "????? ??? ???? | | ??????????# #######"##########????#####?? ???? | | ??????????# #???????????????????????????? ???? | | ??????????# #???????????????????????????? ???? | | ??????????# #???????????????????????????# ???? | | ??????????# #???????????????????????????# ???? | | ??????????+ #???????????????????????????# ???? | | ??????????# #???????????????????????????# ???? | | ??????????/ #???????????????????????????+ ???? | | ??????????# ????????????????????????????# ???? | | ??????????# ????????????????????????????# ???? | | ??????????# ????????????????????????????#####???? | | ??????????# ????????????????????????????????????? | | ??????????# ????????????????????????????????????? | | ??????????# ????????????????????????????????????? | | ??????????# ????????????????????????????????????? | | ??????????# ????????????????????????????????????? | | ?????????? ????????????????????????????????????? | | ?????????? ????????????????????????????????????? | | ?????????????????????????????????????????????????? | | ?????????????????????????????????????????????????? | +----------------------------------------------------+ Best States ------------- Heat Dissipation 123 Coolant Potential 100 Energy Generation 61 Energy Capacity 700 Matter Stores 300 Matter Capacity 300 Sight Range 23 Robot Scan Range 16 Terrain Scan Range 16 Terrain Scan Density 10 ECM Strength 3 Jamming Range 14 Cloak Strength 6 EM Shielding 3 Armor Coverage 800 Resistance: KI 30 Resistance: EM 75 Utility Shielding 90 Weapon Shielding 90 Phase Shifting 15 Evasion (%) 69 Targeting Accuracy 20 Melee Accuracy 8 Core Analysis 8 Recoil Reduction 6 Matter Filtering 50 Kinecelleration 50 Salvage Targeting 3 Offensive Hacking 26 Defensive Hacking 25 Authchip Count 3 Item Schematics ----------------- None Robot Schematics ------------------ None Fabricated ------------ Enh. Nova Cannon | x2 | -3/Armory | Preloaded Enh. Biometal Leg | x1 | -3/Armory | Authchip Enh. Biometal Leg | x1 | -3/Armory | Authchip Exp. Optical Array | x1 | -3/Armory | Authchip Assault Drone Bay | x1 | -3/Armory | Authchip Lgt. Quantum Reactor | x2 | -3/Armory | Preloaded Repaired ---------- Enh. Gauss Cannon | 21% | -6/Factory Alien Tech Used ----------------- Integrated Dissipator Transdimensional Reconstructor Core Regenerator Core Reset Matrix Phase Armor Core Membrane Microwarp Drive Core Physics Calibrator High-powered Transdimensional Reconstructor Achievements -------------- None Challenges ------------ None Game ------ Seed PowerBiometalSpoofer Manual? 0 Play Time 05:02:45 Cumulative 747.2 hours Start 2025.05.18 @ 00:22:55 End 2025.05.18 @ 18:35:07 Sessions 3 Manual Loads 0 Difficulty Rogue Special Mode None Game No. 245 Rogue 243 Adventurer 2 Explorer 0 Win Type 2 Total 43 Types 14/5/12/1/1/0/8/1/0/1 Lore% 95 Gallery% 93 Achievement% 82 Wizard Run 0 Options --------- Layout 0 ASCII 0 Keyboard 1 Movement Numpad Keybinds 0 Fullscreen 1 Font 24/Smallcaps Map View 76x50 Zoom Use 0% Tactical HUD 1 Map Filters NONE Filters NONE Steam 1 RUN: 69136137-e54a-42a9-874e-7efc87d466eb